Workbook

Sheet SSSLIB検証 (その1)
A1: 関数ライブラリ（ＳＳＳＬＩＢ）の検証（その１） | F1: スクリプトによる計算式は、黄色のセルに入力されている。
A3: 1 | B3: 三角関数
B4: 角度 | C4: sin | D4: cos | E4: Actand | F4: Arcosd | G4: Arsind | H4: Artand
B5: 0 | C5: =SIN(rad(B5)) -> 0 | D5: =COS(rad(B5)) -> 1 | E5: =actand(C5,D5) -> 0 | F5: =arcosd(D5) -> 0 | G5: =arsind(C5) -> 0 | H5: =Artand(C5,D5) -> 0
B6: 30 | C6: 0.5 | D6: 0.8660254038 | E6: 30 | F6: 30 | G6: 30 | H6: 30
B7: 60 | C7: 0.8660254038 | D7: 0.5 | E7: 60 | F7: 60 | G7: 60 | H7: 60
B8: 90 | C8: 1 | D8: 8.720997015e-15 | E8: 90 | F8: 90 | G8: 90 | H8: 90
B9: 120 | C9: 0.8660254038 | D9: -0.5 | E9: 120 | F9: 120 | G9: 60 | H9: 120
B10: 150 | C10: 0.5 | D10: -0.8660254038 | E10: 150 | F10: 150 | G10: 30 | H10: 150
B11: 180 | C11: 1.744199403e-14 | D11: -1 | E11: 180 | F11: 180 | G11: 9.993526442e-13 | H11: 180
B12: =180+0.00000000001 -> 180 | C12: -1.570850654e-13 | D12: -1 | E12: 180 | F12: 180 | G12: -9.000311274e-12 | H12: -180
B13: 210 | C13: -0.5 | D13: -0.8660254038 | E13: 210 | F13: 150 | G13: -30 | H13: -150
B14: 240 | C14: -0.8660254038 | D14: -0.5 | E14: 240 | F14: 120 | G14: -60 | H14: -120
B15: 270 | C15: -1 | D15: -2.594094644e-14 | E15: 270 | F15: 90 | G15: -90 | H15: -90
B16: 300 | C16: -0.8660254038 | D16: 0.5 | E16: 300 | F16: 60 | G16: -60 | H16: -60
B17: 330 | C17: -0.5 | D17: 0.8660254038 | E17: 330 | F17: 30 | G17: -30 | H17: -30
B18: 360 | C18: -3.488398806e-14 | D18: 1 | E18: 360 | F18: 0 | G18: -1.998705288e-12 | H18: -1.998705288e-12
A20: =A3+1 -> 2 | B20: ベクトル | N20: ベクトルの回転
B21: a | C21: b | D21: c | E21: d | F21: e | G21: f | H21: g | I21: h | J21: 外積の大きさ | K21: 内積の大きさ | M21: p | N21: q | O21: r | P21: s
D22: =exe("VctNrm(a)",D23:D25=vctnrm(B23:B25)) -> VctNrm(a) | E22: =exe("VctNrm(b)",E23:E25=vctnrm(C23:C25)) -> VctNrm(b) | F22: =exe("VctAng(c,d)",F23=vctang(D23:D25,E23:E25)) -> VctAng(c,d) | G22: =exe("VctCrp(c,d)",G23:G25=vctcrp(D23:D25,E23:E25)) -> VctCrp(c,d) | H22: =exe("VctInp(c,d)",H23=vctinp(D23:D25,E23:E25)) -> VctInp(c,d) | I22: =exe("VctMag(a)",I23=vctmag(B23:B25)) -> VctMag(a) | J22: =exe("(sin内角)",J23=arsind(vctmag(G23:G25))) -> (sin内角) | K22: =exe("(cos内角)",K23=arcosd(H23)) -> (cos内角) | N22: =exe("VctRtn(p,45,1)",N23:N25=vctrtn(M23:M25,45,1)) -> VctRtn(p,45,1) | O22: =exe("VctRtn(p,45,2)",O23:O25=vctrtn(M23:M25,45,2)) -> VctRtn(p,45,2) | P22: =exe("VctRtn(p,45,3)",P23:P25=vctrtn(M23:M25,45,3)) -> VctRtn(p,45,3)
B23: 2 | C23: 3 | D23: 0.3244428423 | E23: 0.4242640687 | F23: 19.84667517 | G23: -0.298240454 | H23: 0.9406045089 | I23: 6.164414003 | J23: 19.84667517 | K23: 19.84667517 | M23: =1/SQRT(3) -> 0.5773502692 | N23: 0.5773502692 | O23: 0.8164965809 | P23: 3.525445994e-15
B24: 3 | C24: 5 | D24: 0.4866642634 | E24: 0.7071067812 | G24: 0.1605910137 | M24: =1/SQRT(3) -> 0.5773502692 | N24: 3.525445994e-15 | O24: 0.5773502692 | P24: 0.8164965809
B25: 5 | C25: 4 | D25: 0.8111071057 | E25: 0.5656854249 | G25: 0.02294157339 | M25: =1/SQRT(3) -> 0.5773502692 | N25: 0.8164965809 | O25: 3.525445994e-15 | P25: 0.5773502692
A27: =A20+1 -> 3 | B27: マトリクス
B28: A | E28: B | H28: C | K28: D | N28: E | Q28: F
B29: =exe("RtnMat",B30:D32=rtnmat(C29,D29)) -> RtnMat | C29: 12 | D29: 1 | E29: =exe("RtnMat",E30:G32=rtnmat(F29,G29)) -> RtnMat | F29: 23 | G29: 2 | H29: =exe("RtnMat",H30:J32=rtnmat(I29,J29)) -> RtnMat | I29: 34 | J29: 3 | K29: =exe("Mx33Mp(Mx33Mp(A,B),C)",K30:M32=Mx33Mp(Mx33Mp(B30:D32,E30:G32),H30:J32)) -> Mx33Mp(Mx33Mp(A,B),C) | O29: =exe("Mx33Iv(D)",N30:P32=mx33iv(K30:M32)) -> Mx33Iv(D) | R29: =exe("Mx33Tp(D)",Q30:S32=mx33tp(K30:M32)) -> Mx33Tp(D)
B30: 1 | C30: 0 | D30: 0 | E30: 0.9205048535 | F30: 0 | G30: 0.3907311285 | H30: 0.8290375726 | I30: -0.5591929035 | J30: 0 | K30: 0.7631331092 | L30: -0.5147397817 | M30: 0.3907311285 | N30: 0.7631331092 | O30: 0.6143221944 | P30: -0.2005893794 | Q30: 0.7631331092 | R30: 0.6143221944 | S30: -0.2005893794
B31: 0 | C31: 0.9781476007 | D31: -0.2079116908 | E31: 0 | F31: 1 | G31: 0 | H31: 0.5591929035 | I31: 0.8290375726 | J31: 0 | K31: 0.6143221944 | L31: 0.7654936401 | M31: -0.1913837205 | N31: -0.5147397817 | O31: 0.7654936401 | P31: 0.3860860579 | Q31: -0.5147397817 | R31: 0.7654936401 | S31: 0.3860860579
B32: 0 | C32: 0.2079116908 | D32: 0.9781476007 | E32: -0.3907311285 | F32: 0 | G32: 0.9205048535 | H32: 0 | I32: 0 | J32: 1 | K32: -0.2005893794 | L32: 0.3860860579 | M32: 0.9003896139 | N32: 0.3907311285 | O32: -0.1913837205 | P32: 0.9003896139 | Q32: 0.3907311285 | R32: -0.1913837205 | S32: 0.9003896139
B34: 回転順序 | F34: 回転角 | I34: マトリクスの回転 | R34: 回転順どおりの角 | U34: オイラー角
B35: 番号 | C35: １回目 | D35: ２回目 | E35: ３回目 | F35: １回目 | G35: ２回目 | H35: ３回目 | I35: G | R35: =exe("OdrAng(G,No)", R37:T37=odrang(I37:Q37,B37), R38:T38=odrang(I38:Q38,B38), R39:T39=odrang(I39:Q39,B39), R40:T40=odrang(I40:Q40,B40), R41:T41=odrang(I41:Q41,B41), R42:T42=odrang(I42:Q42,B42), R43:T43=odrang(I43:Q43,B43), R44:T44=odrang(I44:Q44,B44), R45:T45=odrang(I45:Q45,B45), R46:T46=odrang(I46:Q46,B46), R47:T47=odrang(I47:Q47,B47), R48:T48=odrang(I48:Q48,B48)) -> OdrAng(G,No) | U35: =exe("RtnAng(G,No)", U37:W37=rtnang(I37:Q37,B37), U38:W38=rtnang(I38:Q38,B38), U39:W39=rtnang(I39:Q39,B39), U40:W40=rtnang(I40:Q40,B40), U41:W41=rtnang(I41:Q41,B41), U42:W42=rtnang(I42:Q42,B42), U43:W43=rtnang(I43:Q43,B43), U44:W44=rtnang(I44:Q44,B44), U45:W45=rtnang(I45:Q45,B45), U46:W46=rtnang(I46:Q46,B46), U47:W47=rtnang(I47:Q47,B47), U48:W48=rtnang(I48:Q48,B48)) -> RtnAng(G,No)
B36: No | C36: I1 | D36: I2 | E36: I3 | F36: A1 | G36: A2 | H36: A3 | I36: =exe("G=MatRtn(MatRtn(RtnMat(A1,I1),A2,I2),A3,I3)", I37:Q37=matrtn(matrtn(rtnmat(F37,C37),G37,D37),H37,E37), I38:Q38=matrtn(matrtn(rtnmat(F38,C38),G38,D38),H38,E38), I39:Q39=matrtn(matrtn(rtnmat(F39,C39),G39,D39),H39,E39), I40:Q40=matrtn(matrtn(rtnmat(F40,C40),G40,D40),H40,E40), I41:Q41=matrtn(matrtn(rtnmat(F41,C41),G41,D41),H41,E41), I42:Q42=matrtn(matrtn(rtnmat(F42,C42),G42,D42),H42,E42), I43:Q43=matrtn(matrtn(rtnmat(F43,C43),G43,D43),H43,E43), I44:Q44=matrtn(matrtn(rtnmat(F44,C44),G44,D44),H44,E44), I45:Q45=matrtn(matrtn(rtnmat(F45,C45),G45,D45),H45,E45), I46:Q46=matrtn(matrtn(rtnmat(F46,C46),G46,D46),H46,E46), I47:Q47=matrtn(matrtn(rtnmat(F47,C47),G47,D47),H47,E47), I48:Q48=matrtn(matrtn(rtnmat(F48,C48),G48,D48),H48,E48)) -> G=MatRtn(MatRtn(RtnMat(A1,I1),A2,I2),A3,I3) | R36: １回目 | S36: ２回目 | T36: ３回目 | U36: １回目 | V36: ２回目 | W36: ３回目
B37: 1 | C37: 1 | D37: 2 | E37: 3 | F37: 10 | G37: 20 | H37: 30 | I37: 0.8137976813 | J37: 0.5438381425 | K37: -0.2048741287 | L37: -0.4698463104 | M37: 0.8231729446 | N37: 0.3187957776 | O37: 0.3420201433 | P37: -0.1631759112 | Q37: 0.9254165784 | R37: 10 | S37: 20 | T37: 30 | U37: 10 | V37: 20 | W37: 30
B38: 2 | C38: 2 | D38: 3 | E38: 1 | F38: =F37 -> 10 | G38: 20 | H38: 30 | I38: 0.9254165784 | J38: 0.3420201433 | K38: -0.1631759112 | L38: -0.2048741287 | M38: 0.8137976813 | N38: 0.5438381425 | O38: 0.3187957776 | P38: -0.4698463104 | Q38: 0.8231729446 | R38: 10 | S38: 20 | T38: 30 | U38: 30 | V38: 10 | W38: 20
B39: 3 | C39: 3 | D39: 1 | E39: 2 | F39: 10 | G39: 20 | H39: 30 | I39: 0.8231729446 | J39: 0.3187957776 | K39: -0.4698463104 | L39: -0.1631759112 | M39: 0.9254165784 | N39: 0.3420201433 | O39: 0.5438381425 | P39: -0.2048741287 | Q39: 0.8137976813 | R39: 10 | S39: 20 | T39: 30 | U39: 20 | V39: 30 | W39: 10
B40: 4 | C40: 3 | D40: 2 | E40: 1 | F40: 10 | G40: 20 | H40: 30 | I40: 0.9254165784 | J40: 0.1631759112 | K40: -0.3420201433 | L40: 0.01802831124 | M40: 0.8825641193 | N40: 0.4698463104 | O40: 0.3785223064 | P40: -0.4409696105 | Q40: 0.8137976813 | R40: 10 | S40: 20 | T40: 30 | U40: 30 | V40: 20 | W40: 10
B41: 5 | C41: 1 | D41: 3 | E41: 2 | F41: 10 | G41: 20 | H41: 30 | I41: 0.8137976813 | J41: 0.3785223064 | K41: -0.4409696105 | L41: -0.3420201433 | M41: 0.9254165784 | N41: 0.1631759112 | O41: 0.4698463104 | P41: 0.01802831124 | Q41: 0.8825641193 | R41: 10 | S41: 20 | T41: 30 | U41: 10 | V41: 30 | W41: 20
B42: 6 | C42: 2 | D42: 1 | E42: 3 | F42: 10 | G42: 20 | H42: 30 | I42: 0.8825641193 | J42: 0.4698463104 | K42: 0.01802831124 | L42: -0.4409696105 | M42: 0.8137976813 | N42: 0.3785223064 | O42: 0.1631759112 | P42: -0.3420201433 | Q42: 0.9254165784 | R42: 10 | S42: 20 | T42: 30 | U42: 20 | V42: 10 | W42: 30
B43: 7 | C43: 1 | D43: 2 | E43: 1 | F43: 10 | G43: 20 | H43: 30 | I43: 0.9396926208 | J43: 0.05939117461 | K43: -0.3368240888 | L43: 0.1710100717 | M43: 0.7712805764 | N43: 0.6130920224 | O43: 0.2961981327 | P43: -0.6337183609 | Q43: 0.7146101771 | R43: 10 | S43: 20 | T43: 30 | U43: 10 | V43: 20 | W43: 30
B44: 8 | C44: 2 | D44: 3 | E44: 2 | F44: 10 | G44: 20 | H44: 30 | I44: 0.7146101771 | J44: 0.2961981327 | K44: -0.6337183609 | L44: -0.3368240888 | M44: 0.9396926208 | N44: 0.05939117461 | O44: 0.6130920224 | P44: 0.1710100717 | Q44: 0.7712805764 | R44: 10 | S44: 20 | T44: 30 | U44: 30 | V44: 10 | W44: 20
B45: 9 | C45: 3 | D45: 1 | E45: 3 | F45: 10 | G45: 20 | H45: 30 | I45: 0.7712805764 | J45: 0.6130920224 | K45: 0.1710100717 | L45: -0.6337183609 | M45: 0.7146101771 | N45: 0.2961981327 | O45: 0.05939117461 | P45: -0.3368240888 | Q45: 0.9396926208 | R45: 10 | S45: 20 | T45: 30 | U45: 20 | V45: 30 | W45: 10
B46: 10 | C46: 3 | D46: 2 | E46: 3 | F46: 10 | G46: 20 | H46: 30 | I46: 0.7146101771 | J46: 0.6337183609 | K46: -0.2961981327 | L46: -0.6130920224 | M46: 0.7712805764 | N46: 0.1710100717 | O46: 0.3368240888 | P46: 0.05939117461 | Q46: 0.9396926208 | R46: 10 | S46: 20 | T46: 30 | U46: 30 | V46: 20 | W46: 10
B47: 11 | C47: 1 | D47: 3 | E47: 1 | F47: 10 | G47: 20 | H47: 30 | I47: 0.9396926208 | J47: 0.3368240888 | K47: 0.05939117461 | L47: -0.2961981327 | M47: 0.7146101771 | N47: 0.6337183609 | O47: 0.1710100717 | P47: -0.6130920224 | Q47: 0.7712805764 | R47: 10 | S47: 20 | T47: 30 | U47: 10 | V47: 30 | W47: 20
B48: 12 | C48: 2 | D48: 1 | E48: 2 | F48: 10 | G48: 20 | H48: 30 | I48: 0.7712805764 | J48: 0.1710100717 | K48: -0.6130920224 | L48: 0.05939117461 | M48: 0.9396926208 | N48: 0.3368240888 | O48: 0.6337183609 | P48: -0.2961981327 | Q48: 0.7146101771 | R48: 10 | S48: 20 | T48: 30 | U48: 20 | V48: 10 | W48: 30
B50: 回転順序 | F50: 回転角 | I50: マトリクスの回転 | R50: 回転順どおりの角 | U50: オイラー角
B51: 番号 | C51: １回目 | D51: ２回目 | E51: ３回目 | F51: １回目 | G51: ２回目 | H51: ３回目 | I51: G | R51: =exe("OdrAng(G,No)", R53:T53=odrang(I53:Q53,B53), R54:T54=odrang(I54:Q54,B54), R55:T55=odrang(I55:Q55,B55), R56:T56=odrang(I56:Q56,B56), R57:T57=odrang(I57:Q57,B57), R58:T58=odrang(I58:Q58,B58), R59:T59=odrang(I59:Q59,B59), R60:T60=odrang(I60:Q60,B60), R61:T61=odrang(I61:Q61,B61), R62:T62=odrang(I62:Q62,B62), R63:T63=odrang(I63:Q63,B63), R64:T64=odrang(I64:Q64,B64)) -> OdrAng(G,No) | U51: =exe("RtnAng(G,No)", U53:W53=rtnang(I53:Q53,B53), U54:W54=rtnang(I54:Q54,B54), U55:W55=rtnang(I55:Q55,B55), U56:W56=rtnang(I56:Q56,B56), U57:W57=rtnang(I57:Q57,B57), U58:W58=rtnang(I58:Q58,B58), U59:W59=rtnang(I59:Q59,B59), U60:W60=rtnang(I60:Q60,B60), U61:W61=rtnang(I61:Q61,B61), U62:W62=rtnang(I62:Q62,B62), U63:W63=rtnang(I63:Q63,B63), U64:W64=rtnang(I64:Q64,B64)) -> RtnAng(G,No)
B52: No | C52: I1 | D52: I2 | E52: I3 | F52: A1 | G52: A2 | H52: A3 | I52: =exe("G=AngMat(A1～A3,I1～I3)", I53:Q53=AngMat(F53:H53,C53:E53), I54:Q54=AngMat(F54:H54,C54:E54), I55:Q55=AngMat(F55:H55,C55:E55), I56:Q56=AngMat(F56:H56,C56:E56), I57:Q57=AngMat(F57:H57,C57:E57), I58:Q58=AngMat(F58:H58,C58:E58), I59:Q59=AngMat(F59:H59,C59:E59), I60:Q60=AngMat(F60:H60,C60:E60), I61:Q61=AngMat(F61:H61,C61:E61), I62:Q62=AngMat(F62:H62,C62:E62), I63:Q63=AngMat(F63:H63,C63:E63), I64:Q64=AngMat(F64:H64,C64:E64)) -> G=AngMat(A1～A3,I1～I3) | R52: １回目 | S52: ２回目 | T52: ３回目 | U52: １回目 | V52: ２回目 | W52: ３回目
B53: 1 | C53: 1 | D53: 2 | E53: 3 | F53: 10 | G53: 20 | H53: 30 | I53: 0.8137976813 | J53: 0.5438381425 | K53: -0.2048741287 | L53: -0.4698463104 | M53: 0.8231729446 | N53: 0.3187957776 | O53: 0.3420201433 | P53: -0.1631759112 | Q53: 0.9254165784 | R53: 10 | S53: 20 | T53: 30 | U53: 10 | V53: 20 | W53: 30
B54: 2 | C54: 2 | D54: 3 | E54: 1 | F54: =F53 -> 10 | G54: =G53 -> 20 | H54: =H53 -> 30 | I54: 0.9254165784 | J54: 0.3420201433 | K54: -0.1631759112 | L54: -0.2048741287 | M54: 0.8137976813 | N54: 0.5438381425 | O54: 0.3187957776 | P54: -0.4698463104 | Q54: 0.8231729446 | R54: 10 | S54: 20 | T54: 30 | U54: 30 | V54: 10 | W54: 20
B55: 3 | C55: 3 | D55: 1 | E55: 2 | F55: 10 | G55: 20 | H55: 30 | I55: 0.8231729446 | J55: 0.3187957776 | K55: -0.4698463104 | L55: -0.1631759112 | M55: 0.9254165784 | N55: 0.3420201433 | O55: 0.5438381425 | P55: -0.2048741287 | Q55: 0.8137976813 | R55: 10 | S55: 20 | T55: 30 | U55: 20 | V55: 30 | W55: 10
B56: 4 | C56: 3 | D56: 2 | E56: 1 | F56: 10 | G56: 20 | H56: 30 | I56: 0.9254165784 | J56: 0.1631759112 | K56: -0.3420201433 | L56: 0.01802831124 | M56: 0.8825641193 | N56: 0.4698463104 | O56: 0.3785223064 | P56: -0.4409696105 | Q56: 0.8137976813 | R56: 10 | S56: 20 | T56: 30 | U56: 30 | V56: 20 | W56: 10
B57: 5 | C57: 1 | D57: 3 | E57: 2 | F57: 10 | G57: 20 | H57: 30 | I57: 0.8137976813 | J57: 0.3785223064 | K57: -0.4409696105 | L57: -0.3420201433 | M57: 0.9254165784 | N57: 0.1631759112 | O57: 0.4698463104 | P57: 0.01802831124 | Q57: 0.8825641193 | R57: 10 | S57: 20 | T57: 30 | U57: 10 | V57: 30 | W57: 20
B58: 6 | C58: 2 | D58: 1 | E58: 3 | F58: 10 | G58: 20 | H58: 30 | I58: 0.8825641193 | J58: 0.4698463104 | K58: 0.01802831124 | L58: -0.4409696105 | M58: 0.8137976813 | N58: 0.3785223064 | O58: 0.1631759112 | P58: -0.3420201433 | Q58: 0.9254165784 | R58: 10 | S58: 20 | T58: 30 | U58: 20 | V58: 10 | W58: 30
B59: 7 | C59: 1 | D59: 2 | E59: 1 | F59: 10 | G59: 20 | H59: 30 | I59: 0.9396926208 | J59: 0.05939117461 | K59: -0.3368240888 | L59: 0.1710100717 | M59: 0.7712805764 | N59: 0.6130920224 | O59: 0.2961981327 | P59: -0.6337183609 | Q59: 0.7146101771 | R59: 10 | S59: 20 | T59: 30 | U59: 10 | V59: 20 | W59: 30
B60: 8 | C60: 2 | D60: 3 | E60: 2 | F60: 10 | G60: 20 | H60: 30 | I60: 0.7146101771 | J60: 0.2961981327 | K60: -0.6337183609 | L60: -0.3368240888 | M60: 0.9396926208 | N60: 0.05939117461 | O60: 0.6130920224 | P60: 0.1710100717 | Q60: 0.7712805764 | R60: 10 | S60: 20 | T60: 30 | U60: 30 | V60: 10 | W60: 20
B61: 9 | C61: 3 | D61: 1 | E61: 3 | F61: 10 | G61: 20 | H61: 30 | I61: 0.7712805764 | J61: 0.6130920224 | K61: 0.1710100717 | L61: -0.6337183609 | M61: 0.7146101771 | N61: 0.2961981327 | O61: 0.05939117461 | P61: -0.3368240888 | Q61: 0.9396926208 | R61: 10 | S61: 20 | T61: 30 | U61: 20 | V61: 30 | W61: 10
B62: 10 | C62: 3 | D62: 2 | E62: 3 | F62: 10 | G62: 20 | H62: 30 | I62: 0.7146101771 | J62: 0.6337183609 | K62: -0.2961981327 | L62: -0.6130920224 | M62: 0.7712805764 | N62: 0.1710100717 | O62: 0.3368240888 | P62: 0.05939117461 | Q62: 0.9396926208 | R62: 10 | S62: 20 | T62: 30 | U62: 30 | V62: 20 | W62: 10
B63: 11 | C63: 1 | D63: 3 | E63: 1 | F63: 10 | G63: 20 | H63: 30 | I63: 0.9396926208 | J63: 0.3368240888 | K63: 0.05939117461 | L63: -0.2961981327 | M63: 0.7146101771 | N63: 0.6337183609 | O63: 0.1710100717 | P63: -0.6130920224 | Q63: 0.7712805764 | R63: 10 | S63: 20 | T63: 30 | U63: 10 | V63: 30 | W63: 20
B64: 12 | C64: 2 | D64: 1 | E64: 2 | F64: 10 | G64: 20 | H64: 30 | I64: 0.7712805764 | J64: 0.1710100717 | K64: -0.6130920224 | L64: 0.05939117461 | M64: 0.9396926208 | N64: 0.3368240888 | O64: 0.6337183609 | P64: -0.2961981327 | Q64: 0.7146101771 | R64: 10 | S64: 20 | T64: 30 | U64: 20 | V64: 10 | W64: 30
B66: 上記の計算式を１行づつ入力（通常のエクセルの計算式と同様に、コピーするとセル範囲が自動的に調整される）。
B67: 回転順序 | F67: 回転角 | I67: マトリクスの回転 | S67: 回転順どおりの角 | W67: オイラー角
B68: 番号 | C68: １回目 | D68: ２回目 | E68: ３回目 | F68: １回目 | G68: ２回目 | H68: ３回目 | I68: G | S68: OdrAng(G,No) | W68: RtnAng(G,No)
B69: No | C69: I1 | D69: I2 | E69: I3 | F69: A1 | G69: A2 | H69: A3 | I69: AngMat=MatRtn(MatRtn(RtnMat(A1,I1),A2,I2),A3,I3) | R69: No | S69: １回目 | T69: ２回目 | U69: ３回目 | V69: No | W69: １回目 | X69: ２回目 | Y69: ３回目
B70: =exe(ROW()-ROW(A$69),I70:Q70=matrtn(matrtn(rtnmat(F70,C70),G70,D70),H70,E70)) -> 1 | C70: 1 | D70: 2 | E70: 3 | F70: 10 | G70: 20 | H70: 30 | I70: 0.8137976813 | J70: 0.5438381425 | K70: -0.2048741287 | L70: -0.4698463104 | M70: 0.8231729446 | N70: 0.3187957776 | O70: 0.3420201433 | P70: -0.1631759112 | Q70: 0.9254165784 | R70: =exe(B70,S70:U70=odrang(I70:Q70,B70)) -> 1 | S70: 10 | T70: 20 | U70: 30 | V70: =exe(B70,W70:Y70=rtnang(I70:Q70,B70)) -> 1 | W70: 10 | X70: 20 | Y70: 30
B71: 2 | C71: 2 | D71: 3 | E71: 1 | F71: =F70 -> 10 | G71: 20 | H71: 30 | I71: 0.9254165784 | J71: 0.3420201433 | K71: -0.1631759112 | L71: -0.2048741287 | M71: 0.8137976813 | N71: 0.5438381425 | O71: 0.3187957776 | P71: -0.4698463104 | Q71: 0.8231729446 | R71: =exe(B71,S71:U71=odrang(I71:Q71,B71)) -> 2 | S71: 10 | T71: 20 | U71: 30 | V71: =exe(B71,W71:Y71=rtnang(I71:Q71,B71)) -> 2 | W71: 30 | X71: 10 | Y71: 20
B72: 3 | C72: 3 | D72: 1 | E72: 2 | F72: 10 | G72: 20 | H72: 30 | I72: 0.8231729446 | J72: 0.3187957776 | K72: -0.4698463104 | L72: -0.1631759112 | M72: 0.9254165784 | N72: 0.3420201433 | O72: 0.5438381425 | P72: -0.2048741287 | Q72: 0.8137976813 | R72: =exe(B72,S72:U72=odrang(I72:Q72,B72)) -> 3 | S72: 10 | T72: 20 | U72: 30 | V72: =exe(B72,W72:Y72=rtnang(I72:Q72,B72)) -> 3 | W72: 20 | X72: 30 | Y72: 10
B73: 4 | C73: 3 | D73: 2 | E73: 1 | F73: 10 | G73: 20 | H73: 30 | I73: 0.9254165784 | J73: 0.1631759112 | K73: -0.3420201433 | L73: 0.01802831124 | M73: 0.8825641193 | N73: 0.4698463104 | O73: 0.3785223064 | P73: -0.4409696105 | Q73: 0.8137976813 | R73: =exe(B73,S73:U73=odrang(I73:Q73,B73)) -> 4 | S73: 10 | T73: 20 | U73: 30 | V73: =exe(B73,W73:Y73=rtnang(I73:Q73,B73)) -> 4 | W73: 30 | X73: 20 | Y73: 10
B74: 5 | C74: 1 | D74: 3 | E74: 2 | F74: 10 | G74: 20 | H74: 30 | I74: 0.8137976813 | J74: 0.3785223064 | K74: -0.4409696105 | L74: -0.3420201433 | M74: 0.9254165784 | N74: 0.1631759112 | O74: 0.4698463104 | P74: 0.01802831124 | Q74: 0.8825641193 | R74: =exe(B74,S74:U74=odrang(I74:Q74,B74)) -> 5 | S74: 10 | T74: 20 | U74: 30 | V74: =exe(B74,W74:Y74=rtnang(I74:Q74,B74)) -> 5 | W74: 10 | X74: 30 | Y74: 20
B75: 6 | C75: 2 | D75: 1 | E75: 3 | F75: 10 | G75: 20 | H75: 30 | I75: 0.8825641193 | J75: 0.4698463104 | K75: 0.01802831124 | L75: -0.4409696105 | M75: 0.8137976813 | N75: 0.3785223064 | O75: 0.1631759112 | P75: -0.3420201433 | Q75: 0.9254165784 | R75: =exe(B75,S75:U75=odrang(I75:Q75,B75)) -> 6 | S75: 10 | T75: 20 | U75: 30 | V75: =exe(B75,W75:Y75=rtnang(I75:Q75,B75)) -> 6 | W75: 20 | X75: 10 | Y75: 30
B76: 7 | C76: 1 | D76: 2 | E76: 1 | F76: 10 | G76: 20 | H76: 30 | I76: 0.9396926208 | J76: 0.05939117461 | K76: -0.3368240888 | L76: 0.1710100717 | M76: 0.7712805764 | N76: 0.6130920224 | O76: 0.2961981327 | P76: -0.6337183609 | Q76: 0.7146101771 | R76: =exe(B76,S76:U76=odrang(I76:Q76,B76)) -> 7 | S76: 10 | T76: 20 | U76: 30 | V76: =exe(B76,W76:Y76=rtnang(I76:Q76,B76)) -> 7 | W76: 10 | X76: 20 | Y76: 30
B77: 8 | C77: 2 | D77: 3 | E77: 2 | F77: 10 | G77: 20 | H77: 30 | I77: 0.7146101771 | J77: 0.2961981327 | K77: -0.6337183609 | L77: -0.3368240888 | M77: 0.9396926208 | N77: 0.05939117461 | O77: 0.6130920224 | P77: 0.1710100717 | Q77: 0.7712805764 | R77: =exe(B77,S77:U77=odrang(I77:Q77,B77)) -> 8 | S77: 10 | T77: 20 | U77: 30 | V77: =exe(B77,W77:Y77=rtnang(I77:Q77,B77)) -> 8 | W77: 30 | X77: 10 | Y77: 20
B78: 9 | C78: 3 | D78: 1 | E78: 3 | F78: 10 | G78: 20 | H78: 30 | I78: 0.7712805764 | J78: 0.6130920224 | K78: 0.1710100717 | L78: -0.6337183609 | M78: 0.7146101771 | N78: 0.2961981327 | O78: 0.05939117461 | P78: -0.3368240888 | Q78: 0.9396926208 | R78: =exe(B78,S78:U78=odrang(I78:Q78,B78)) -> 9 | S78: 10 | T78: 20 | U78: 30 | V78: =exe(B78,W78:Y78=rtnang(I78:Q78,B78)) -> 9 | W78: 20 | X78: 30 | Y78: 10
B79: 10 | C79: 3 | D79: 2 | E79: 3 | F79: 10 | G79: 20 | H79: 30 | I79: 0.7146101771 | J79: 0.6337183609 | K79: -0.2961981327 | L79: -0.6130920224 | M79: 0.7712805764 | N79: 0.1710100717 | O79: 0.3368240888 | P79: 0.05939117461 | Q79: 0.9396926208 | R79: =exe(B79,S79:U79=odrang(I79:Q79,B79)) -> 10 | S79: 10 | T79: 20 | U79: 30 | V79: =exe(B79,W79:Y79=rtnang(I79:Q79,B79)) -> 10 | W79: 30 | X79: 20 | Y79: 10
B80: 11 | C80: 1 | D80: 3 | E80: 1 | F80: 10 | G80: 20 | H80: 30 | I80: 0.9396926208 | J80: 0.3368240888 | K80: 0.05939117461 | L80: -0.2961981327 | M80: 0.7146101771 | N80: 0.6337183609 | O80: 0.1710100717 | P80: -0.6130920224 | Q80: 0.7712805764 | R80: =exe(B80,S80:U80=odrang(I80:Q80,B80)) -> 11 | S80: 10 | T80: 20 | U80: 30 | V80: =exe(B80,W80:Y80=rtnang(I80:Q80,B80)) -> 11 | W80: 10 | X80: 30 | Y80: 20
B81: 12 | C81: 2 | D81: 1 | E81: 2 | F81: 10 | G81: 20 | H81: 30 | I81: 0.7712805764 | J81: 0.1710100717 | K81: -0.6130920224 | L81: 0.05939117461 | M81: 0.9396926208 | N81: 0.3368240888 | O81: 0.6337183609 | P81: -0.2961981327 | Q81: 0.7146101771 | R81: =exe(B81,S81:U81=odrang(I81:Q81,B81)) -> 12 | S81: 10 | T81: 20 | U81: 30 | V81: =exe(B81,W81:Y81=rtnang(I81:Q81,B81)) -> 12 | W81: 20 | X81: 10 | Y81: 30
B83: G | F83: m | J83: =exe("Q*a*cnj(Q)",J84:J87=qtqqmp(Qtqvmp(B92:B95,B23:B25),qtncnj(B92:B95))) -> Q*a*cnj(Q) | K83: =exe("R*a*cnj(R)",K84:K87=qtqqmp(Qtqvmp(C92:C95,B23:B25),qtncnj(C92:C95))) -> R*a*cnj(R) | L83: =exe("S*a*cnj(S)",L84:L87=qtqqmp(Qtqvmp(D92:D95,B23:B25),qtncnj(D92:D95))) -> S*a*cnj(S) | M83: =exe("T*a*cnj(T)",M84:M87=qtqqmp(Qtqvmp(E92:E95,B23:B25),qtncnj(E92:E95))) -> T*a*cnj(T) | N83: =exe("vctrtn(12,1)",N85:N87=vctrtn(B23:B25,12,1)) -> vctrtn(12,1) | O83: =exe("vctrtn(23,2)",O85:O87=vctrtn(B23:B25,23,2)) -> vctrtn(23,2) | P83: =exe("vctrtn(34,3)",P85:P87=vctrtn(B23:B25,34,3)) -> vctrtn(34,3) | Q83: =exe("vctrtn(34,3)→vctrtn(23,2)→vctrtn(12,1)",Q85:Q87=vctrtn(vctrtn(vctrtn(B23:B25,34,3),23,2),12,1)) -> vctrtn(34,3)→vctrtn(23,2)→vctrtn(12,1)
B84: =exe("MatRtn(MatRtn(RtnMat(12,1),23,2),34,3)",B85:D87=matrtn(matrtn(rtnmat(12,1),23,2),34,3)) -> MatRtn(MatRtn(RtnMat(12,1),23,2),34,3) | F84: =exe("Mx31Mp(A,a)",F85:F87=mx31mp(B30:D32,B23:B25)) -> Mx31Mp(A,a) | G84: =exe("Mx31Mp(B,a)",G85:G87=mx31mp(E30:G32,B23:B25)) -> Mx31Mp(B,a) | H84: =exe("Mx31Mp(C,a)",H85:H87=mx31mp(H30:J32,B23:B25)) -> Mx31Mp(C,a) | I84: =exe("Mx31Mp(D,a)",I85:I87=mx31mp(K30:M32,B23:B25)) -> Mx31Mp(D,a) | J84: 0 | K84: 7.654467338e-17 | L84: -1.829049065e-16 | M84: -1.315137235e-16
B85: 0.7631331092 | C85: -0.5147397817 | D85: 0.3907311285 | F85: 2 | G85: 3.794665349 | H85: -0.0195035653 | I85: 1.935702516 | J85: 2 | K85: 3.794665349 | L85: -0.0195035653 | M85: 1.935702516 | N85: 2 | O85: 3.794665349 | P85: -0.0195035653 | Q85: 1.935702516
B86: 0.6143221944 | C86: 0.7654936401 | D86: -0.1913837205 | F86: 1.894884348 | G86: 3 | H86: 3.605498525 | I86: 2.568206707 | J86: 1.894884348 | K86: 3 | L86: 3.605498525 | M86: 2.568206707 | N86: 1.894884348 | O86: 3 | P86: 3.605498525 | Q86: 2.568206707
B87: -0.2005893794 | C87: 0.3860860579 | D87: 0.9003896139 | F87: 5.514473076 | G87: 3.82106201 | H87: 5 | I87: 5.259027484 | J87: 5.514473076 | K87: 3.82106201 | L87: 5 | M87: 5.259027484 | N87: 5.514473076 | O87: 3.82106201 | P87: 5 | Q87: 5.259027484
A89: =A27+1 -> 4 | B89: 四元数
B90: Q | C90: R | D90: S | E90: T=Q*R*S | F90: U | G90: V | H90: W | Y90: D
B91: =exe("RtnQtn(12,1)",B92:B95=rtnqtn(12,1)) -> RtnQtn(12,1) | C91: =exe("RtnQtn(23,2)",C92:C95=rtnqtn(23,2)) -> RtnQtn(23,2) | D91: =exe("RtnQtn(34,3)",D92:D95=rtnqtn(34,3)) -> RtnQtn(34,3) | E91: =exe("QtqqMp",E92:E95=qtqqmp(qtqqmp(B92:B95,C92:C95),D92:D95)) -> QtqqMp | F91: =exe("QtnCnj(T)",F92:F95=qtncnj(E92:E95)) -> QtnCnj(T) | G91: =exe("DcmQtn(D)",G92:G95=DcmQtn(K30:M32)) -> DcmQtn(D) | H91: =exe("AngQtn",H92:H95=QtnRtn(QtnRtn(rtnqtn(12,1),23,2),34,3)) -> AngQtn | Y91: =exe("QtnDcm(T)",Y92:AA94=QtnDcm(E92:E95)) -> QtnDcm(T)
B92: 0.9945218954 | C92: 0.9799247046 | D92: 0.956304756 | E92: 0.9258801709 | F92: 0.9258801709 | G92: 0.9258801709 | H92: 0.9258801709 | Y92: 0.7631331092 | Z92: -0.5147397817 | AA92: 0.3907311285
B93: 0.1045284633 | C93: 0 | D93: 0 | E93: 0.1559245453 | F93: -0.1559245453 | G93: 0.1559245453 | H93: 0.1559245453 | Y93: 0.6143221944 | Z93: 0.7654936401 | AA93: -0.1913837205
B94: 0 | C94: 0.1993679344 | D94: 0 | E94: 0.159664427 | F94: -0.159664427 | G94: 0.159664427 | H94: 0.159664427 | Y94: -0.2005893794 | Z94: 0.3860860579 | AA94: 0.9003896139
B95: 0 | C95: 0 | D95: 0.2923717047 | E95: 0.3048617984 | F95: -0.3048617984 | G95: 0.3048617984 | H95: 0.3048617984
B97: 回転順序 | F97: 回転角 | I97: 四元数の回転 | M97: 回転順の角 | P97: オイラー角
B98: 番号 | C98: １回目 | D98: ２回目 | E98: ３回目 | F98: １回目 | G98: ２回目 | H98: ３回目 | I98: G | M98: =exe("OdrAng(G,No)", M100:O100=odrang(QtnDcm(I100:L100),B100), M101:O101=odrang(QtnDcm(I101:L101),B101), M102:O102=odrang(QtnDcm(I102:L102),B102), M103:O103=odrang(QtnDcm(I103:L103),B103), M104:O104=odrang(QtnDcm(I104:L104),B104), M105:O105=odrang(QtnDcm(I105:L105),B105), M106:O106=odrang(QtnDcm(I106:L106),B106), M107:O107=odrang(QtnDcm(I107:L107),B107), M108:O108=odrang(QtnDcm(I108:L108),B108), M109:O109=odrang(QtnDcm(I109:L109),B109), M110:O110=odrang(QtnDcm(I110:L110),B110), M111:O111=odrang(QtnDcm(I111:L111),B111)) -> OdrAng(G,No) | P98: =exe("RtnAng(G,No)", P100:R100=rtnang(QtnDcm(I100:L100),B100), P101:R101=rtnang(QtnDcm(I101:L101),B101), P102:R102=rtnang(QtnDcm(I102:L102),B102), P103:R103=rtnang(QtnDcm(I103:L103),B103), P104:R104=rtnang(QtnDcm(I104:L104),B104), P105:R105=rtnang(QtnDcm(I105:L105),B105), P106:R106=rtnang(QtnDcm(I106:L106),B106), P107:R107=rtnang(QtnDcm(I107:L107),B107), P108:R108=rtnang(QtnDcm(I108:L108),B108), P109:R109=rtnang(QtnDcm(I109:L109),B109), P110:R110=rtnang(QtnDcm(I110:L110),B110), P111:R111=rtnang(QtnDcm(I111:L111),B111)) -> RtnAng(G,No)
B99: No | C99: I1 | D99: I2 | E99: I3 | F99: A1 | G99: A2 | H99: A3 | I99: =exe("G=QtnRtn(QtnRtn(RtnQtn(A1,I1),A2,I2),A3,I3)", I100:L100=QtnRtn(QtnRtn(rtnqtn(F100,C100),G100,D100),H100,E100), I101:L101=QtnRtn(QtnRtn(rtnqtn(F101,C101),G101,D101),H101,E101), I102:L102=QtnRtn(QtnRtn(rtnqtn(F102,C102),G102,D102),H102,E102), I103:L103=QtnRtn(QtnRtn(rtnqtn(F103,C103),G103,D103),H103,E103), I104:L104=QtnRtn(QtnRtn(rtnqtn(F104,C104),G104,D104),H104,E104), I105:L105=QtnRtn(QtnRtn(rtnqtn(F105,C105),G105,D105),H105,E105), I106:L106=QtnRtn(QtnRtn(rtnqtn(F106,C106),G106,D106),H106,E106), I107:L107=QtnRtn(QtnRtn(rtnqtn(F107,C107),G107,D107),H107,E107), I108:L108=QtnRtn(QtnRtn(rtnqtn(F108,C108),G108,D108),H108,E108), I109:L109=QtnRtn(QtnRtn(rtnqtn(F109,C109),G109,D109),H109,E109), I110:L110=QtnRtn(QtnRtn(rtnqtn(F110,C110),G110,D110),H110,E110), I111:L111=QtnRtn(QtnRtn(rtnqtn(F111,C111),G111,D111),H111,E111)) -> G=QtnRtn(QtnRtn(RtnQtn(A1,I1),A2,I2),A3,I3) | M99: １回目 | N99: ２回目 | O99: ３回目 | P99: １回目 | Q99: ２回目 | R99: ３回目
B100: 1 | C100: 1 | D100: 2 | E100: 3 | F100: 10 | G100: 20 | H100: 30 | I100: 0.9437143641 | J100: 0.1276794407 | K100: 0.1448781254 | L100: 0.2685358228 | M100: 10 | N100: 20 | O100: 30 | P100: 10 | Q100: 20 | R100: 30
B101: 2 | C101: 2 | D101: 3 | E101: 1 | F101: =F100 -> 10 | G101: 20 | H101: 30 | I101: 0.9437143641 | J101: 0.2685358228 | K101: 0.1276794407 | L101: 0.1448781254 | M101: 10 | N101: 20 | O101: 30 | P101: 30 | Q101: 10 | R101: 20
B102: 3 | C102: 3 | D102: 1 | E102: 2 | F102: 10 | G102: 20 | H102: 30 | I102: 0.9437143641 | J102: 0.1448781254 | K102: 0.2685358228 | L102: 0.1276794407 | M102: 10 | N102: 20 | O102: 30 | P102: 20 | Q102: 30 | R102: 10
B103: 4 | C103: 3 | D103: 2 | E103: 1 | F103: 10 | G103: 20 | H103: 30 | I103: 0.9515485246 | J103: 0.2392983377 | K103: 0.1893078574 | L103: 0.03813457647 | M103: 10 | N103: 20 | O103: 30 | P103: 30 | Q103: 20 | R103: 10
B104: 5 | C104: 1 | D104: 3 | E104: 2 | F104: 10 | G104: 20 | H104: 30 | I104: 0.9515485246 | J104: 0.03813457647 | K104: 0.2392983377 | L104: 0.1893078574 | M104: 10 | N104: 20 | O104: 30 | P104: 10 | Q104: 30 | R104: 20
B105: 6 | C105: 2 | D105: 1 | E105: 3 | F105: 10 | G105: 20 | H105: 30 | I105: 0.9515485246 | J105: 0.1893078574 | K105: 0.03813457647 | L105: 0.2392983377 | M105: 10 | N105: 20 | O105: 30 | P105: 20 | Q105: 10 | R105: 30
B106: 7 | C106: 1 | D106: 2 | E106: 1 | F106: 10 | G106: 20 | H106: 30 | I106: 0.9254165784 | J106: 0.3368240888 | K106: 0.1710100717 | L106: -0.03015368961 | M106: 10 | N106: 20 | O106: 30 | P106: 10 | Q106: 20 | R106: 30
B107: 8 | C107: 2 | D107: 3 | E107: 2 | F107: 10 | G107: 20 | H107: 30 | I107: 0.9254165784 | J107: -0.03015368961 | K107: 0.3368240888 | L107: 0.1710100717 | M107: 10 | N107: 20 | O107: 30 | P107: 30 | Q107: 10 | R107: 20
B108: 9 | C108: 3 | D108: 1 | E108: 3 | F108: 10 | G108: 20 | H108: 30 | I108: 0.9254165784 | J108: 0.1710100717 | K108: -0.03015368961 | L108: 0.3368240888 | M108: 10 | N108: 20 | O108: 30 | P108: 20 | Q108: 30 | R108: 10
B109: 10 | C109: 3 | D109: 2 | E109: 3 | F109: 10 | G109: 20 | H109: 30 | I109: 0.9254165784 | J109: 0.03015368961 | K109: 0.1710100717 | L109: 0.3368240888 | M109: 10 | N109: 20 | O109: 30 | P109: 30 | Q109: 20 | R109: 10
B110: 11 | C110: 1 | D110: 3 | E110: 1 | F110: 10 | G110: 20 | H110: 30 | I110: 0.9254165784 | J110: 0.3368240888 | K110: 0.03015368961 | L110: 0.1710100717 | M110: 10 | N110: 20 | O110: 30 | P110: 10 | Q110: 30 | R110: 20
B111: 12 | C111: 2 | D111: 1 | E111: 2 | F111: 10 | G111: 20 | H111: 30 | I111: 0.9254165784 | J111: 0.1710100717 | K111: 0.3368240888 | L111: 0.03015368961 | M111: 10 | N111: 20 | O111: 30 | P111: 20 | Q111: 10 | R111: 30
B113: 回転順序 | F113: 回転角 | I113: 四元数の回転 | M113: 回転順の角 | P113: オイラー角
B114: 番号 | C114: １回目 | D114: ２回目 | E114: ３回目 | F114: １回目 | G114: ２回目 | H114: ３回目 | I114: G | M114: =exe("OdrAng(G,No)", M116:O116=odrang(QtnDcm(I116:L116),B116), M117:O117=odrang(QtnDcm(I117:L117),B117), M118:O118=odrang(QtnDcm(I118:L118),B118), M119:O119=odrang(QtnDcm(I119:L119),B119), M120:O120=odrang(QtnDcm(I120:L120),B120), M121:O121=odrang(QtnDcm(I121:L121),B121), M122:O122=odrang(QtnDcm(I122:L122),B122), M123:O123=odrang(QtnDcm(I123:L123),B123), M124:O124=odrang(QtnDcm(I124:L124),B124), M125:O125=odrang(QtnDcm(I125:L125),B125), M126:O126=odrang(QtnDcm(I126:L126),B126), M127:O127=odrang(QtnDcm(I127:L127),B127)) -> OdrAng(G,No) | P114: =exe("RtnAng(G,No)", P116:R116=rtnang(QtnDcm(I116:L116),B116), P117:R117=rtnang(QtnDcm(I117:L117),B117), P118:R118=rtnang(QtnDcm(I118:L118),B118), P119:R119=rtnang(QtnDcm(I119:L119),B119), P120:R120=rtnang(QtnDcm(I120:L120),B120), P121:R121=rtnang(QtnDcm(I121:L121),B121), P122:R122=rtnang(QtnDcm(I122:L122),B122), P123:R123=rtnang(QtnDcm(I123:L123),B123), P124:R124=rtnang(QtnDcm(I124:L124),B124), P125:R125=rtnang(QtnDcm(I125:L125),B125), P126:R126=rtnang(QtnDcm(I126:L126),B126), P127:R127=rtnang(QtnDcm(I127:L127),B127)) -> RtnAng(G,No)
B115: No | C115: I1 | D115: I2 | E115: I3 | F115: A1 | G115: A2 | H115: A3 | I115: =exe("G=AngQtn(A1～A3,I1～I3)", I116:L116=angqtn(F116:H116,C116:E116), I117:L117=angqtn(F117:H117,C117:E117), I118:L118=angqtn(F118:H118,C118:E118), I119:L119=angqtn(F119:H119,C119:E119), I120:L120=angqtn(F120:H120,C120:E120), I121:L121=angqtn(F121:H121,C121:E121), I122:L122=angqtn(F122:H122,C122:E122), I123:L123=angqtn(F123:H123,C123:E123), I124:L124=angqtn(F124:H124,C124:E124), I125:L125=angqtn(F125:H125,C125:E125), I126:L126=angqtn(F126:H126,C126:E126), I127:L127=angqtn(F127:H127,C127:E127)) -> G=AngQtn(A1～A3,I1～I3) | M115: １回目 | N115: ２回目 | O115: ３回目 | P115: １回目 | Q115: ２回目 | R115: ３回目
B116: 1 | C116: 1 | D116: 2 | E116: 3 | F116: 10 | G116: 20 | H116: 30 | I116: 0.9437143641 | J116: 0.1276794407 | K116: 0.1448781254 | L116: 0.2685358228 | M116: 10 | N116: 20 | O116: 30 | P116: 10 | Q116: 20 | R116: 30
B117: 2 | C117: 2 | D117: 3 | E117: 1 | F117: =F116 -> 10 | G117: =G116 -> 20 | H117: =H116 -> 30 | I117: 0.9437143641 | J117: 0.2685358228 | K117: 0.1276794407 | L117: 0.1448781254 | M117: 10 | N117: 20 | O117: 30 | P117: 30 | Q117: 10 | R117: 20
B118: 3 | C118: 3 | D118: 1 | E118: 2 | F118: 10 | G118: 20 | H118: 30 | I118: 0.9437143641 | J118: 0.1448781254 | K118: 0.2685358228 | L118: 0.1276794407 | M118: 10 | N118: 20 | O118: 30 | P118: 20 | Q118: 30 | R118: 10
B119: 4 | C119: 3 | D119: 2 | E119: 1 | F119: 10 | G119: 20 | H119: 30 | I119: 0.9515485246 | J119: 0.2392983377 | K119: 0.1893078574 | L119: 0.03813457647 | M119: 10 | N119: 20 | O119: 30 | P119: 30 | Q119: 20 | R119: 10
B120: 5 | C120: 1 | D120: 3 | E120: 2 | F120: 10 | G120: 20 | H120: 30 | I120: 0.9515485246 | J120: 0.03813457647 | K120: 0.2392983377 | L120: 0.1893078574 | M120: 10 | N120: 20 | O120: 30 | P120: 10 | Q120: 30 | R120: 20
B121: 6 | C121: 2 | D121: 1 | E121: 3 | F121: 10 | G121: 20 | H121: 30 | I121: 0.9515485246 | J121: 0.1893078574 | K121: 0.03813457647 | L121: 0.2392983377 | M121: 10 | N121: 20 | O121: 30 | P121: 20 | Q121: 10 | R121: 30
B122: 7 | C122: 1 | D122: 2 | E122: 1 | F122: 10 | G122: 20 | H122: 30 | I122: 0.9254165784 | J122: 0.3368240888 | K122: 0.1710100717 | L122: -0.03015368961 | M122: 10 | N122: 20 | O122: 30 | P122: 10 | Q122: 20 | R122: 30
B123: 8 | C123: 2 | D123: 3 | E123: 2 | F123: 10 | G123: 20 | H123: 30 | I123: 0.9254165784 | J123: -0.03015368961 | K123: 0.3368240888 | L123: 0.1710100717 | M123: 10 | N123: 20 | O123: 30 | P123: 30 | Q123: 10 | R123: 20
B124: 9 | C124: 3 | D124: 1 | E124: 3 | F124: 10 | G124: 20 | H124: 30 | I124: 0.9254165784 | J124: 0.1710100717 | K124: -0.03015368961 | L124: 0.3368240888 | M124: 10 | N124: 20 | O124: 30 | P124: 20 | Q124: 30 | R124: 10
B125: 10 | C125: 3 | D125: 2 | E125: 3 | F125: 10 | G125: 20 | H125: 30 | I125: 0.9254165784 | J125: 0.03015368961 | K125: 0.1710100717 | L125: 0.3368240888 | M125: 10 | N125: 20 | O125: 30 | P125: 30 | Q125: 20 | R125: 10
B126: 11 | C126: 1 | D126: 3 | E126: 1 | F126: 10 | G126: 20 | H126: 30 | I126: 0.9254165784 | J126: 0.3368240888 | K126: 0.03015368961 | L126: 0.1710100717 | M126: 10 | N126: 20 | O126: 30 | P126: 10 | Q126: 30 | R126: 20
B127: 12 | C127: 2 | D127: 1 | E127: 2 | F127: 10 | G127: 20 | H127: 30 | I127: 0.9254165784 | J127: 0.1710100717 | K127: 0.3368240888 | L127: 0.03015368961 | M127: 10 | N127: 20 | O127: 30 | P127: 20 | Q127: 10 | R127: 30
A129: =A89+1 -> 5 | B129: 回転と座標変換
B130: 慣性座標系(I系) | E130: 局地座標系(L系)（上－東－北） | K130: ノミナル機体座標系(Bn系) | P130: 機体座標系(B系) | AC130: 方向余弦マトリクス | AF130: 四元数 | AH130: ベクトル | AJ130: 回転 | AK130: 座標変換 | AM130: 回転 | AN130: 座標変換
B131: DII | G131: =exe("DIL",G133:I135=matrtn(rtnmat(F134,3),-F135,2)) -> DIL | J131: =exe("QIL",J132:J135=QtnRtn(rtnqtn(F134,3),-F135,2)) -> QIL | K131: オイラー角 | L131: =exe("DIBn",L133:N135=Mx33Mp(G133:I135,matrtn(matrtn(rtnmat(K133,1),K134,2),K135,3))) -> DIBn | O131: =exe("QIBn",O132:O135=qtqqmp(J132:J135,QtnRtn(QtnRtn(rtnqtn(K133,1),K134,2),K135,3))) -> QIBn | P131: 姿勢誤差 | Q131: =exe("DIB",Q133:S135=Mx33Mp(L133:N135,ravdcm(P133:P135))) -> DIB | T131: =exe("QIB",T132:T135=qtqqmp(O132:O135,ravqtn(P133:P135))) -> QIB | AC131: 0.5438381425 | AD131: 0.8231729446 | AE131: -0.1631759112 | AF131: 0.1276794407 | AH131: 1 | AJ131: 0.9001654905 | AK131: 1.28685158 | AM131: 0.9001654905 | AN131: 1.28685158
B132: XI | C132: YI | D132: ZI | G132: XL | H132: YL | I132: ZL | J132: 0.4194492944 | L132: XBn | M132: YBn | N132: ZBn | O132: 0.6872946684 | Q132: XB | R132: YB | S132: ZB | T132: 0.7098848332 | AC132: -0.2048741287 | AD132: 0.3187957776 | AE132: 0.9254165784 | AF132: 0.1448781254 | AH132: 2 | AJ132: 1.700656298 | AK132: 2.132886912 | AM132: 1.700656298 | AN132: 2.132886912
B133: 1 | C133: 0 | D133: 0 | E133: 時間 | F133: 100 | G133: -0.6481026693 | H133: -0.007292051229 | I133: -0.7615180602 | J133: 0.003309801939 | K133: -105 | L133: -0.0544468937 | M133: 0.8829772508 | N133: -0.4662474776 | O133: -0.02006469274 | P133: 1 | Q133: 0.008180051889 | R133: 0.8759074039 | S133: -0.4824098948 | T133: -0.01239151208 | AF133: 0.2685358228 | AH133: 3 | AJ133: 3.208967162 | AK133: 2.791918056 | AM133: 3.208967162 | AN133: 2.791918056
B134: 0 | C134: 1 | D134: 0 | E134: 自転 | F134: =wer()*F133 -> 0.4178074622 | G134: -0.004726123521 | H134: 0.9999734126 | I134: -0.005553176351 | J134: -0.9077714447 | K134: 60 | L134: -0.8542736347 | M134: 0.2005583315 | N134: 0.4795757633 | O134: -0.3576383711 | P134: 2 | Q134: -0.8585373468 | R134: 0.2534930488 | S134: 0.4457071891 | T134: -0.3504426458
B135: 0 | C135: 0 | D135: 1 | E135: 測地緯度 | F135: 130.4 | G135: 0.7615383075 | H135: 0 | I135: -0.6481199011 | J135: 0.001529343202 | K135: 30 | L135: 0.5169643052 | M135: 0.4244143379 | N135: 0.7433844072 | O135: -0.6319163254 | P135: 3 | Q135: 0.5126857819 | R135: 0.4105210032 | S135: 0.7540728048 | T135: -0.6108190616 | AC135: 局地座標系 | AF135: 機体座標系 | AI135: 誤差角 | AJ135: 誤差を有する機体座標系 | AN135: 機体座標系から見た誤差 | AO135: 局地座標系から見た誤差
B137: ベクトルの回転と座標変換
B138: ベクトル | D138: 回転 | E138: 座標変換 | G138: 回転 | H138: 座標変換 | AC138: =exe("DIL",AC139:AE141=matrtn(matrtn(rtnmat(15,3),-130.4,2),-105,1)) -> DIL | AF138: =exe("DIB",AF139:AH141=Mx33Mp(AC139:AE141,matrtn(matrtn(rtnmat(1,1),2,2),3,3))) -> DIB | AI138: e | AJ138: =exe("DIB'",AJ139:AL141=Mx33Mp(AF139:AH141,ravdcm(AI139:AI141))) -> DIB' | AN138: =exe("eB",AN139:AN141=matang(AF139:AH141,AF139:AH141,AJ139:AL141)) -> eB | AO138: =exe("eL",AO139:AO141=matang(AC139:AE141,AF139:AH141,AJ139:AL141)) -> eL
B139: aI | D139: =exe("DIL･aI",D141:D143=mx31mp(G133:I135,B141:B143)) -> DIL･aI | E139: =exe("DIL^T･aI",E141:E143=mx31mp(mx33tp(G133:I135),B141:B143)) -> DIL^T･aI | G139: =exe("QIL･aI･QIL^*",G140:G143=qtqqmp(qtqqmp(J132:J135,B140:B143),qtncnj(J132:J135))) -> QIL･aI･QIL^* | H139: =exe("QIL^*･aI･QIL",H140:H143=qtqqmp(qtqqmp(qtncnj(J132:J135),B140:B143),J132:J135)) -> QIL^*･aI･QIL | AC139: -0.626035751 | AD139: 0.777512212 | AE139: -0.05961542312 | AF139: -0.581615455 | AG139: 0.8078999604 | AH139: -0.09497955844 | AI139: 1 | AJ139: -0.5346770896 | AK139: 0.8351811671 | AL139: -0.1288131514 | AN139: 1 | AO139: 0.9981115375
G140: -3.778402219e-18 | H140: -1.677781686e-17 | AC140: -0.1677457739 | AD140: -0.05961542312 | AE140: 0.9840260955 | AF140: -0.2039605834 | AG140: -0.03180183117 | AH140: 0.9784624285 | AI140: 2 | AJ140: -0.2389141076 | AK140: -0.003184649325 | AL140: 0.971035482 | AN140: 2 | AO140: 1.99750203
B141: 1 | D141: -2.947240952 | E141: 1.627060006 | G141: -2.947240952 | H141: 1.627060006 | AC141: 0.7615383075 | AD141: 0.626035751 | AE141: 0.1677457739 | AF141: 0.7874792333 | AG141: 0.5884609567 | AH141: 0.1832761838 | AI141: 3 | AJ141: 0.8105803224 | AK141: 0.5499657045 | AL141: 0.2012393222 | AN141: 3 | AO141: 3.002292291
B142: 2 | D142: 1.978561173 | E142: 1.992654774 | G142: 1.978561173 | H142: 1.992654774
B143: 3 | D143: -1.182821396 | E143: -2.716984116 | G143: -1.182821396 | H143: -2.716984116 | AD143: =exe("QIL",AD146:AD153=DcmQtn(AC139:AE141)) -> QIL | AG143: =exe("QIB",AG146:AG153=DcmQtn(AF139:AH141)) -> QIB | AK143: =exe("QIB'",AK146:AK153=qtqqmp(AG146:AG153,ravqtn(AI139:AI141))) -> QIB' | AN143: =exe("eB",AN146:AN151=qtnang(AG146:AG153,AG146:AG153,AK146:AK153)) -> eB | AO143: =exe("eL",AO146:AO151=qtnang(AD146:AD153,AG146:AG153,AK146:AK153)) -> eL
B145: 回転マトリクスによる座標系の回転表現
B146: I系で見たL系からB系への回転角 | F146: 機体座標系(B系) | J146: I系で見たL系からB系への回転マトリクス | N146: 局地座標系(L系)（上－東－北） | AD146: 0.3471651624 | AG146: 0.3774449952 | AK146: 0 | AN146: 0 | AO146: 0
B147: 回転角ベクトル | F147: DIB | J147: (DLB)^I | N147: DIL | AD147: -0.2577954122 | AG147: -0.2583167592 | AK147: 0 | AN147: 0 | AO147: 0
C148: =exe("Rav",C149:C151=matang(B133:D135,G133:I135,Q133:S135)) -> Rav | F148: =exe("XB",F149:F151=mx31mp(J149:L151,N149:N151)) -> XB | G148: =exe("YB",G149:G151=mx31mp(J149:L151,O149:O151)) -> YB | H148: =exe("ZB",H149:H151=mx31mp(J149:L151,P149:P151)) -> ZB | K148: =exe("RavDcm",J149:L151=ravdcm(C149:C151)) -> RavDcm | N148: XL | O148: YL | P148: ZL | AD148: -0.5913278604 | AG148: -0.5844949615 | AK148: 0 | AN148: 0 | AO148: 0
C149: 72.27648899 | F149: 0.008180051889 | G149: 0.8759074039 | H149: -0.4824098948 | J149: 0.3556751722 | K149: 0.8785243631 | L149: 0.3188888762 | N149: =G133 -> -0.6481026693 | O149: -0.007292051229 | P149: -0.7615180602 | AD149: -0.6806976105 | AG149: -0.6702039745 | AK149: 0
C150: 65.93302345 | F150: -0.8585373468 | G150: 0.2534930488 | H150: 0.4457071891 | I150: ＝ | J150: 0.2151577877 | K150: 0.255068772 | L150: -0.9426807773 | M150: ・ | N150: -0.004726123521 | O150: 0.9999734126 | P150: -0.005553176351 | AD150: -0.2577954122 | AG150: -0.2583167592 | AK150: -0.2584899599 | AN150: 2 | AO150: 1.99750203
C151: -35.6056042 | F151: 0.5126857819 | G151: 0.4105210032 | H151: 0.7540728048 | J151: -0.9095066235 | K151: 0.4038995729 | L151: -0.09829972899 | N151: 0.7615383075 | O151: 0 | P151: -0.6481199011 | AD151: -0.5913278604 | AG151: -0.5844949615 | AK151: -0.5766829974 | AN151: 3 | AO151: 3.002292291
B153: 方向余弦マトリクスによる座標系の回転表現 | AD153: -0.6806976105 | AG153: -0.6702039745 | AK153: -0.659374905
F154: 機体座標系(B系) | J154: 局地座標系(L系) | N154: L系で見た機体座標系(B系)
F155: DIB | J155: DIL | N155: DLB
F156: =exe("XB",F157:F159=mx31mp(J157:L159,N157:N159)) -> XB | G156: =exe("YB",G157:G159=mx31mp(J157:L159,O157:O159)) -> YB | H156: =exe("ZB",H157:H159=mx31mp(J157:L159,P157:P159)) -> ZB | J156: XL | K156: YL | L156: ZL | O156: =exe("(DIL)^T・DLB",N157:P159=Mx33Mp(mx33tp(G133:I135),Q133:S135)) -> (DIL)^T・DLB
F157: 0.008180051889 | G157: 0.8759074039 | H157: -0.4824098948 | J157: =G133 -> -0.6481026693 | K157: -0.007292051229 | L157: -0.7615180602 | N157: 0.3891859027 | O157: -0.256248496 | P157: 0.8848000008
F158: -0.8585373468 | G158: 0.2534930488 | H158: 0.4457071891 | I158: ＝ | J158: -0.004726123521 | K158: 0.9999734126 | L158: -0.005553176351 | M158: ・ | N158: -0.8585741699 | O158: 0.2470991474 | P158: 0.4492130966
F159: 0.5126857819 | G159: 0.4105210032 | H159: 0.7540728048 | J159: 0.7615383075 | K159: 0 | L159: -0.6481199011 | N159: -0.3337435062 | O159: -0.9344938307 | P159: -0.1238408349
B161: 回転角
B162: I系で見たBn系に対するB系の姿勢誤差 | I162: L系で見たBn系に対するB系の姿勢誤差 | P162: Bn系で見たBn系に対するB系の姿勢誤差
B163: (DBnB)^I | E163: (QBnB)^I | I163: (DBnB)^L | L163: (QBnB)^L | P163: (DBnB)^Bn | S163: (QBnB)^Bn
B164: =exe("DIB･DIBn^T",C165:C167=matang(B133:D135,L133:N135,Q133:S135)) -> DIB･DIBn^T | E164: =exe("QIB･QIBn^T",F165:F167=qtnang(ravqtn(vct3d(0,0,0)),O132:O135,T132:T135)) -> QIB･QIBn^T | I164: =exe("DIL^T･DIB･DIBn^T･DIL",J165:J167=matang(G133:I135,L133:N135,Q133:S135)) -> DIL^T･DIB･DIBn^T･DIL | L164: =exe("QIL^T･QIB･QIBn^T･QIL",M165:M167=qtnang(J132:J135,O132:O135,T132:T135)) -> QIL^T･QIB･QIBn^T･QIL | P164: =exe("DIBn^T･DIB･DIBn^T･DIBn",Q165:Q167=matang(L133:N135,L133:N135,Q133:S135)) -> DIBn^T･DIB･DIBn^T･DIBn | S164: =exe("QIBn^T･QIB･QIBn^T･QIBn",T165:T167=qtnang(O132:O135,O132:O135,T132:T135)) -> QIBn^T･QIB･QIBn^T･QIBn
C165: 0.3127651752 | F165: 0.3127651752 | J165: 2.531088913 | M165: 2.531088913 | Q165: 1 | T165: 1
C166: 0.9855703182 | F166: 0.9855703182 | J166: 0.9832634148 | M166: 0.9832634148 | Q166: 2 | T166: 2
C167: 3.595946203 | F167: 3.595946203 | J167: -2.574253672 | M167: -2.574253672 | Q167: 3 | T167: 3
A169: =A129+1 -> 6 | B169: 微係数
B170: 方向余弦マトリクス
B171: Da | E171: 回転角と | F171: Db | J171: Db-Da | N171: Ddot
B172: =exe("RtnMat",B173:D175=matrtn(matrtn(rtnmat(30,1),30,2),30,3)) -> RtnMat | E172: 回転軸 | F172: =exe("matrtnt",F173:H175=matrtn(B173:D175,E173,E174)) -> matrtnt | J172: 差分 | N172: 回転レート | O172: =exe("微係数",O173:Q175=drvdcm(B173:D175,N173:N175)) -> 微係数
B173: 0.75 | C173: -0.4330127019 | D173: 0.5 | E173: 0.1 | F173: 0.75 | G173: -0.4321393782 | H173: 0.5007549878 | J173: =F173-B173 -> 0 | K173: 0.0008733236988 | L173: 0.0007549878081 | N173: 0.1 | O173: 0 | P173: 0.000872664626 | Q173: 0.0007557497351
B174: 0.6495190528 | C174: 0.625 | D174: -0.4330127019 | E174: 1 | F174: 0.6495190528 | G174: 0.6242432987 | H174: -0.4341028726 | J174: 0 | K174: -0.0007567012806 | L174: -0.001090170713 | N174: 0 | O174: 0 | P174: -0.0007557497351 | Q174: -0.001090830782
B175: -0.125 | C175: 0.6495190528 | D175: 0.75 | F175: -0.125 | G175: 0.6508270598 | H175: 0.7488652337 | J175: 0 | K175: 0.001308007001 | L175: -0.001134766342 | N175: 0 | O175: 0 | P175: 0.001308996939 | Q175: -0.001133624603
B177: Da | E177: 回転角と | F177: Db | J177: Db-Da | N177: Ddot
E178: 回転軸 | F178: =exe("matrtnt",F179:H181=matrtn(B179:D181,E179,E180)) -> matrtnt | J178: 差分 | N178: 回転レート | O178: =exe("微係数",O179:Q181=drvdcm(B179:D181,N179:N181)) -> 微係数
B179: =B173 -> 0.75 | C179: -0.4330127019 | D179: 0.5 | E179: 0.1 | F179: 0.7491261935 | G179: -0.4330127019 | H179: 0.5013082347 | J179: =F179-B179 -> -0.000873806498 | K179: 0 | L179: 0.001308234731 | N179: 0 | O179: -0.000872664626 | P179: 0 | Q179: 0.001308996939
B180: 0.6495190528 | C180: 0.625 | D180: -0.4330127019 | E180: 2 | F180: 0.6502738129 | G180: 0.625 | H180: -0.4318784183 | J180: 0.0007547600776 | K180: 0 | L180: 0.001134283543 | N180: 0.1 | O180: 0.0007557497351 | P180: 0 | Q180: 0.001133624603
B181: -0.125 | C181: 0.6495190528 | D181: 0.75 | F181: -0.1263088059 | G181: 0.6495190528 | H181: 0.7497806916 | J181: -0.001308805889 | K181: 0 | L181: -0.0002193083608 | N181: 0 | O181: -0.001308996939 | P181: 0 | Q181: -0.0002181661565
B183: Da | E183: 回転角と | F183: Db | J183: Db-Da | N183: Ddot
E184: 回転軸 | F184: =exe("matrtnt",F185:H187=matrtn(B185:D187,E185,E186)) -> matrtnt | J184: 差分 | N184: 回転レート | O184: =exe("微係数",O185:Q187=drvdcm(B185:D187,N185:N187)) -> 微係数
B185: =B179 -> 0.75 | C185: -0.4330127019 | D185: 0.5 | E185: 0.1 | F185: 0.7492431083 | G185: -0.4343210387 | H185: 0.5 | J185: =F185-B185 -> -0.0007568916664 | K185: -0.001308336759 | L185: 0 | N185: 0 | O185: -0.0007557497351 | P185: -0.001308996939 | Q185: 0
B186: 0.6495190528 | C186: 0.625 | D186: -0.4330127019 | E186: 3 | F186: 0.6506088938 | G186: 0.623865424 | H186: -0.4330127019 | J186: 0.001089840955 | K186: -0.001134575956 | L186: 0 | N186: 0 | O186: 0.001090830782 | P186: -0.001133624603 | Q186: 0
B187: -0.125 | C187: 0.6495190528 | D187: 0.75 | F187: -0.1238661856 | G187: 0.6497362296 | H187: 0.75 | J187: 0.001133814413 | K187: 0.0002171767719 | L187: 0 | N187: 0.1 | O187: 0.001133624603 | P187: 0.0002181661565 | Q187: 0
B189: 四元数
B190: Qa | F190: Qb | J190: Qb-Qa | O190: Qdot
B191: =exe("DcmQtn",B192:E192=DcmQtn(B173:D175)) -> DcmQtn | F191: =exe("DcmQtn",F192:I192=DcmQtn(F173:H175)) -> DcmQtn | J191: 差分 | O191: =exe("微係数",O192:R192=drvqtn(B192:E192,N173:N175)) -> 微係数
B192: 0.8838834765 | C192: 0.3061862178 | D192: 0.1767766953 | E192: 0.3061862178 | F192: 0.8836159421 | G192: 0.306957435 | H192: 0.1770438258 | I192: 0.3060318345 | J192: =F192-B192 -> -0.0002675344052 | K192: =G192-C192 -> 0.0007712171585 | L192: =H192-D192 -> 0.0002671305358 | M192: =I192-E192 -> -0.0001543833362 | O192: -0.0002671978813 | P192: 0.0007713338434 | Q192: 0.0002671978813 | R192: -0.0001542667687
B194: Qa | F194: Qb | J194: Qb-Qa | O194: Qdot
B195: =exe("DcmQtn",B196:E196=DcmQtn(B179:D181)) -> DcmQtn | F195: =exe("DcmQtn",F196:I196=DcmQtn(F179:H181)) -> DcmQtn | J195: 差分 | O195: =exe("微係数",O196:R196=drvqtn(B196:E196,N179:N181)) -> 微係数
B196: 0.8838834765 | C196: 0.3061862178 | D196: 0.1767766953 | E196: 0.3061862178 | F196: 0.8837288732 | G196: 0.3059189034 | H196: 0.1775479617 | I196: 0.3064532991 | J196: =F196-B196 -> -0.000154603307 | K196: =G196-C196 -> -0.0002673144344 | L196: =H196-D196 -> 0.000771266434 | M196: =I196-E196 -> 0.0002670812603 | O196: -0.0001542667687 | P196: -0.0002671978813 | Q196: 0.0007713338434 | R196: 0.0002671978813
D197: 0 | F197: RtnMat | H197: 0
B198: Qa | F198: Qb | J198: Qb-Qa | O198: Qdot
B199: =exe("DcmQtn",B200:E200=DcmQtn(B185:D187)) -> DcmQtn | F199: =exe("DcmQtn",F200:I200=DcmQtn(F185:H187)) -> DcmQtn | J199: 差分 | O199: =exe("微係数",O200:R200=drvqtn(B200:E200,N185:N187)) -> 微係数
B200: 0.8838834765 | C200: 0.3061862178 | D200: 0.1767766953 | E200: 0.3061862178 | F200: 0.8836159421 | G200: 0.306340368 | H200: 0.1765094301 | I200: 0.306957435 | J200: =F200-B200 -> -0.0002675344052 | K200: =G200-C200 -> 0.000154150162 | L200: =H200-D200 -> -0.0002672651589 | M200: =I200-E200 -> 0.0007712171585 | O200: -0.0002671978813 | P200: 0.0001542667687 | Q200: -0.0002671978813 | R200: 0.0007713338434
A202: =A169+1 -> 7 | B202: 連立方程式
B203: Ｌｎｅｑｓｌの入力データ | H203: =exe("Ｌｎｅｑｓｌの結果",H205:L208=Lneqsl(B205:F208,4,5)) -> Ｌｎｅｑｓｌの結果 | N203: 解の検証
B204: X1 | C204: X2 | D204: X3 | E204: X4 | F204: Y | H204: X1 | I204: X2 | J204: X3 | K204: X4 | L204: 解 | N204: Y
B205: 3 | C205: 2 | D205: 1 | E205: 4 | F205: 10 | H205: 1 | I205: 0 | J205: 0 | K205: 0 | L205: -20 | N205: =B205*$L$205+C205*$L$206+D205*$L$207+E205*$L$208 -> 10
B206: 1 | C206: 4 | D206: 2 | E206: 3 | F206: 20 | H206: 0 | I206: 1 | J206: 0 | K206: 0 | L206: -18 | N206: =B206*$L$205+C206*$L$206+D206*$L$207+E206*$L$208 -> 20
B207: 2 | C207: 3 | D207: 4 | E207: 1 | F207: 30 | H207: 0 | I207: 0 | J207: 1 | K207: 0 | L207: 26 | N207: =B207*$L$205+C207*$L$206+D207*$L$207+E207*$L$208 -> 30
B208: 4 | C208: 1 | D208: 3 | E208: 3 | F208: 40 | H208: 0 | I208: 0 | J208: 0 | K208: 1 | L208: 20 | N208: =B208*$L$205+C208*$L$206+D208*$L$207+E208*$L$208 -> 40
B210: 逆行列の計算
B211: Ｌｎｅｑｓｌの入力データ | I211: =exe("Ｌｎｅｑｓｌの結果",I213:N215=Lneqsl(B213:G215,3,6)) -> Ｌｎｅｑｓｌの結果 | P211: =exe("Mx33Iv(元の行列)",P213:R215=mx33iv(B213:D215)) -> Mx33Iv(元の行列)
B212: 元の行列 | L212: 逆行列 | P212: 逆行列
B213: 0.7631331092 | C213: -0.5147397817 | D213: 0.3907311285 | E213: 1 | F213: 0 | G213: 0 | I213: 1 | J213: 0 | K213: 0 | L213: 0.7631331092 | M213: 0.6143221944 | N213: -0.2005893794 | P213: 0.7631331092 | Q213: 0.6143221944 | R213: -0.2005893794
B214: 0.6143221944 | C214: 0.7654936401 | D214: -0.1913837205 | E214: 0 | F214: 1 | G214: 0 | I214: 0 | J214: 1 | K214: 0 | L214: -0.5147397817 | M214: 0.7654936401 | N214: 0.3860860579 | P214: -0.5147397817 | Q214: 0.7654936401 | R214: 0.3860860579
B215: -0.2005893794 | C215: 0.3860860579 | D215: 0.9003896139 | E215: 0 | F215: 0 | G215: 1 | I215: 0 | J215: 0 | K215: 1 | L215: 0.3907311285 | M215: -0.1913837205 | N215: 0.9003896139 | P215: 0.3907311285 | Q215: -0.1913837205 | R215: 0.9003896139
A217: =A202+1 -> 8 | B217: 多項式近似 ： 戻り値格納範囲＝ＬｓｑＰｏｌ（独立変数列範囲、従属変数行列範囲、次数） （次数を指定しないと、最良次数の多項式を求める）
D218: 戻り値格納範囲：先頭が次数、２番目以降が係数格納領域で、最良次数を自動決定するのでなければ、先頭に次数を設定しておく
D219: 従属変数行列範囲：従属変数の数は任意で、範囲指定された列数から認識する
D220: ３番目の引数を省略すると最良次数を決定し、戻り値格納範囲の先頭に設定する
C221: 生データ計算用 | E221: 次数/近似多項式 | G221: 近似データ | I221: 残差 | K221: 次数 | L221: 近似 | M221: 残差 | N221: 次数 | O221: 近似 | P221: 残差 | Q221: 次数 | R221: 近似 | S221: 残差
B222: X | C222: Y1 | D222: Y2 | E222: =exe("Y1係数",E224:F253=LsqPol(B223:B253,C223:D253,E223)) -> Y1係数 | F222: Y2係数 | G222: Y1 | H222: Y2 | I222: Y1 | J222: Y2 | K222: =exe("Y1係数",K224:K253=LsqPol(B223:B253,C223:C253,K223)) -> Y1係数 | L222: Y1 | M222: Y1 | N222: =exe("Y1係数",N224:N253=LsqPol(B223:B253,C223:C253,N223)) -> Y1係数 | O222: Y1 | P222: Y1 | Q222: =exe("Y1係数",Q223:Q253=Lsqbep(B223:B253,C223:C253)) -> Y1係数 | R222: Y1 | S222: Y1
B223: 0 | C223: =B223+stdrnd()/5+SIN(B223) -> 0.2024915806 | D223: =B223+stdrnd()/5+COS(B223) -> 1.048530441 | E223: 1 | G223: =spolyex(E$224:E$253,$E$223,$B223) -> 0.5743275283 | H223: 1.088859386 | I223: =G223-C223 -> 0.3718359477 | J223: 0.04032894448 | K223: 2 | L223: =spolyex(K$224:K$253,$K$223,$B223) -> -0.04813124545 | M223: =L223-C223 -> -0.250622826 | N223: 3 | O223: =spolyex(N$224:N$253,$N$223,$B223) -> -0.06786003653 | P223: =O223-C223 -> -0.2703516171 | Q223: 11 | R223: =spolyex(Q$224:Q$253,$Q$223,$B223) -> 0.1953305935 | S223: =R223-C223 -> -0.007160987046
... 282 more rows

Sheet SSSLIB検証(その2)
A1: 関数ライブラリ（ＳＳＳＬＩＢ）の検証（その２） | F1: スクリプトによる計算式は、黄色のセルに入力されている。
A3: 1 | B3: 地球楕円体モデルの変換
F4: C-7系からWGS84系へ
B5: C-7系データ | F5: =exe("Cd7Wgs",F9:K9=cd7Wgs(B9:D9,B14:D14)) -> Cd7Wgs
B6: 位置 r | F6: 位置 r | I6: 速度 v
B7: x | C7: y | D7: z | F7: x | G7: y | H7: z | I7: Vx | J7: Vy | K7: Vz
B8: [m] | C8: [m] | D8: [m] | E8: → | F8: [m] | G8: [m] | H8: [m] | I8: [m/s] | J8: [m/s] | K8: [m/s]
B9: -4826194.842 | C9: 3692236.113 | D9: 2768681.871 | F9: -4826205.85 | G9: 3692229.986 | H9: 2768670.997 | I9: -4991.119663 | J9: -2741.637061 | K9: -5107.825045
B11: 速度 v | F11: WGS84系からC-7系へ
B12: Vx | C12: Vy | D12: Vz | F12: =exe("WgsCd7",F16:K16=WgsCd7(F9:H9,I9:K9)) -> WgsCd7
B13: [m/s] | C13: [m/s] | D13: [m/s] | E13: ← | F13: 位置 r | I13: 速度 v
B14: -4991.125897 | C14: -2741.623035 | D14: -5107.823889 | F14: x | G14: y | H14: z | I14: Vx | J14: Vy | K14: Vz
F15: [m] | G15: [m] | H15: [m] | I15: [m/s] | J15: [m/s] | K15: [m/s]
F16: -4826194.842 | G16: 3692236.113 | H16: 2768681.871 | I16: -4991.125897 | J16: -2741.623035 | K16: -5107.823889
E17: 誤差 | F17: =F16-B9 -> 0 | G17: =G16-C9 -> 0 | H17: =H16-D9 -> 0 | I17: =I16-B14 -> 0 | J17: =J16-C14 -> 0 | K17: =K16-D14 -> 0
B19: レーダ局
B20: C-7 | F20: =exe("WGS",G22:G24=cd7Wgs(E22:E24,vct3d(0,0,0))) -> WGS | J20: =exe("C-7",K22:K24=WgsCd7(G22:G24,vct3d(0,0,0))) -> C-7 | N20: 誤差
B21: 地理 | D21: =exe("カルテシアン",E22:E24=geoCar(C22,C23,C24)) -> カルテシアン | F21: カルテシアン | H21: =exe("地理",I22:I24=cargeo(G22:G24)) -> 地理 | J21: カルテシアン | L21: =exe("地理",M22:M24=cargeo(K22:K24)) -> 地理 | N21: 地理 | P21: カルテシアン
B22: 測地緯度 | C22: 30.55533 | D22: x | E22: -3607820.92 | F22: x | G22: -3607832.876 | H22: 測地緯度 | I22: 30.55522372 | J22: x | K22: -3607820.92 | L22: 測地緯度 | M22: 30.55533385 | N22: 測地緯度 | O22: =M22-C22 -> 3.852490764e-06 | P22: x | Q22: =K22-E22 -> 0
B23: 経度 | C23: 131.01708 | D23: y | E23: 4147825.303 | F23: y | G23: 4147822.552 | H23: 経度 | I23: 131.0171928 | J23: y | K23: 4147825.303 | L23: 経度 | M23: 131.01708 | N23: 経度 | O23: =M23-C23 -> -7.105427358e-13 | P23: y | Q23: =K23-E23 -> 0
B24: 高度 | C24: 145.484 | D24: z | E24: 3223614.587 | F24: z | G24: 3223603.816 | H24: 高度 | I24: 144.9782735 | J24: z | K24: 3223614.587 | L24: 高度 | M24: 145.4846269 | N24: 高度 | O24: =M24-C24 -> 0.0006269196756 | P24: z | Q24: =K24-E24 -> 0
B26: WGS | F26: =exe("C-7",G28:G30=WgsCd7(E28:E30,vct3d(0,0,0))) -> C-7 | J26: =exe("WGS",K28:K30=cd7Wgs(G28:G30,vct3d(0,0,0))) -> WGS | N26: 誤差
B27: 地理 | D27: =exe("カルテシアン",E28:E30=geoCar(C28,C29,C30)) -> カルテシアン | F27: カルテシアン | H27: =exe("地理",I28:I30=cargeo(G28:G30)) -> 地理 | J27: カルテシアン | L27: =exe("地理",M28:M30=cargeo(K28:K30)) -> 地理 | N27: 地理 | P27: カルテシアン
B28: 測地緯度 | C28: =I22 -> 30.55522372 | D28: x | E28: -3607832.734 | F28: x | G28: -3607820.779 | H28: 測地緯度 | I28: 30.55533769 | J28: x | K28: -3607832.734 | L28: 測地緯度 | M28: 30.55522756 | N28: 測地緯度 | O28: =M28-C28 -> 3.839091345e-06 | P28: x | Q28: =K28-E28 -> 0
B29: 経度 | C29: =I23 -> 131.0171928 | D29: y | E29: 4147822.389 | F29: y | G29: 4147825.14 | H29: 経度 | I29: 131.01708 | J29: y | K29: 4147822.389 | L29: 経度 | M29: 131.0171928 | N29: 経度 | O29: =M29-C29 -> -7.389644452e-13 | P29: y | Q29: =K29-E29 -> 0
B30: 高度 | C30: =I24 -> 144.9782735 | D30: z | E30: 3223604.183 | F30: z | G30: 3223614.953 | H30: 高度 | I30: 145.4852525 | J30: z | K30: 3223604.183 | L30: 高度 | M30: 144.9788982 | N30: 高度 | O30: =M30-C30 -> 0.0006247382846 | P30: z | Q30: =K30-E30 -> 0
A32: =A3+1 -> 2 | B32: 測地線
B33: 第1地点 | C33: 測地緯度 | D33: 7.512 | E33: 度 | F33: 第1地点 | G33: 測地緯度 | H33: 0 | I33: 度 | J33: 第1地点 | K33: 測地緯度 | L33: 0 | M33: 度 | N33: 第1地点 | O33: 測地緯度 | P33: 0 | Q33: 度 | R33: 第1地点 | S33: 測地緯度 | T33: 30 | U33: 度 | V33: 第1地点 | W33: 測地緯度 | X33: 30 | Y33: 度 | Z33: 第1地点 | AA33: 測地緯度 | AB33: 30 | AC33: 度 | AD33: 第1地点 | AE33: 測地緯度 | AF33: 90 | AG33: 度 | AH33: 第1地点 | AI33: 測地緯度 | AJ33: 90 | AK33: 度
C34: 経度 | D34: 155.27 | E34: 度 | G34: 経度 | H34: 0 | I34: 度 | K34: 経度 | L34: 0 | M34: 度 | O34: 経度 | P34: 0 | Q34: 度 | S34: 経度 | T34: 0 | U34: 度 | W34: 経度 | X34: 0 | Y34: 度 | AA34: 経度 | AB34: 0 | AC34: 度 | AE34: 経度 | AF34: 0 | AG34: 度 | AI34: 経度 | AJ34: 0 | AK34: 度
B35: 第2地点 | C35: 測地緯度 | D35: 10.32 | E35: 度 | F35: 第2地点 | G35: 測地緯度 | H35: 0 | I35: 度 | J35: 第2地点 | K35: 測地緯度 | L35: 0 | M35: 度 | N35: 第2地点 | O35: 測地緯度 | P35: 0 | Q35: 度 | R35: 第2地点 | S35: 測地緯度 | T35: -30 | U35: 度 | V35: 第2地点 | W35: 測地緯度 | X35: 30 | Y35: 度 | Z35: 第2地点 | AA35: 測地緯度 | AB35: -30 | AC35: 度 | AD35: 第2地点 | AE35: 測地緯度 | AF35: -90 | AG35: 度 | AH35: 第2地点 | AI35: 測地緯度 | AJ35: 90 | AK35: 度
C36: 経度 | D36: 153.4073 | E36: 度 | G36: 経度 | H36: 179 | I36: 度 | K36: 経度 | L36: 180 | M36: 度 | O36: 経度 | P36: 181 | Q36: 度 | S36: 経度 | T36: 180 | U36: 度 | W36: 経度 | X36: 180 | Y36: 度 | AA36: 経度 | AB36: 0 | AC36: 度 | AE36: 経度 | AF36: 180 | AG36: 度 | AI36: 経度 | AJ36: 180 | AK36: 度
B37: ダウンレンジ（測地線） | D37: =GeoDes(D33,D34,D35,D36) -> 372039.8445 | E37: [m] | F37: ダウンレンジ（測地線） | H37: =GeoDes(H33,H34,H35,H36) -> 19926204.47 | I37: [m] | J37: ダウンレンジ（測地線） | L37: =GeoDes(L33,L34,L35,L36) -> 20037524.05 | M37: [m] | N37: ダウンレンジ（測地線） | P37: =GeoDes(P33,P34,P35,P36) -> 20148843.63 | Q37: [m] | R37: ダウンレンジ（測地線） | T37: =GeoDes(T33,T34,T35,T36) -> 20029169.3 | U37: [m] | V37: ダウンレンジ（測地線） | X37: =GeoDes(X33,X34,X35,X36) -> 13363715.18 | Y37: [m] | Z37: ダウンレンジ（測地線） | AB37: =GeoDes(AB33,AB34,AB35,AB36) -> 6640231.711 | AC37: [m] | AD37: ダウンレンジ（測地線） | AF37: =GeoDes(AF33,AF34,AF35,AF36) -> 20003946.89 | AG37: [m] | AH37: ダウンレンジ（測地線） | AJ37: =GeoDes(AJ33,AJ34,AJ35,AJ36) -> 1.116214172e-07 | AK37: [m]
B38: =exe("第1地心半径",C38:E38=geoCar(D33,D34,0)) -> 第1地心半径 | C38: -5743806.362 | D38: 2645500.317 | E38: 828304.2879 | F38: =exe("第1地心半径",G38:I38=geoCar(H33,H34,0)) -> 第1地心半径 | G38: 6378142 | H38: 0 | I38: 0 | J38: =exe("第1地心半径",K38:M38=geoCar(L33,L34,0)) -> 第1地心半径 | K38: 6378142 | L38: 0 | M38: 0 | N38: =exe("第1地心半径",O38:Q38=geoCar(P33,P34,0)) -> 第1地心半径 | O38: 6378142 | P38: 0 | Q38: 0 | R38: =exe("第1地心半径",S38:U38=geoCar(T33,T34,0)) -> 第1地心半径 | S38: 5528261.008 | T38: 0 | U38: 3170376.081 | V38: =exe("第1地心半径",W38:Y38=geoCar(X33,X34,0)) -> 第1地心半径 | W38: 5528261.008 | X38: 0 | Y38: 3170376.081 | Z38: =exe("第1地心半径",AA38:AC38=geoCar(AB33,AB34,0)) -> 第1地心半径 | AA38: 5528261.008 | AB38: 0 | AC38: 3170376.081 | AD38: =exe("第1地心半径",AE38:AG38=geoCar(AF33,AF34,0)) -> 第1地心半径 | AE38: 5.58107086e-08 | AF38: 0 | AG38: 6356757.138 | AH38: =exe("第1地心半径",AI38:AK38=geoCar(AJ33,AJ34,0)) -> 第1地心半径 | AI38: 5.58107086e-08 | AJ38: 0 | AK38: 6356757.138
B39: =exe("第2地心半径",C39:E39=geoCar(D35,D36,0)) -> 第2地心半径 | C39: -5611742.879 | D39: 2809257.281 | E39: 1135089.138 | F39: =exe("第2地心半径",G39:I39=geoCar(H35,H36,0)) -> 第2地心半径 | G39: -6377170.578 | H39: 111313.9265 | I39: 0 | J39: =exe("第2地心半径",K39:M39=geoCar(L35,L36,0)) -> 第2地心半径 | K39: -6378142 | L39: 1.112471689e-07 | M39: 0 | N39: =exe("第2地心半径",O39:Q39=geoCar(P35,P36,0)) -> 第2地心半径 | O39: -6377170.578 | P39: -111313.9265 | Q39: 0 | R39: =exe("第2地心半径",S39:U39=geoCar(T35,T36,0)) -> 第2地心半径 | S39: -5528261.008 | T39: 9.64235958e-08 | U39: -3170376.081 | V39: =exe("第2地心半径",W39:Y39=geoCar(X35,X36,0)) -> 第2地心半径 | W39: -5528261.008 | X39: 9.64235958e-08 | Y39: 3170376.081 | Z39: =exe("第2地心半径",AA39:AC39=geoCar(AB35,AB36,0)) -> 第2地心半径 | AA39: 5528261.008 | AB39: 0 | AC39: -3170376.081 | AD39: =exe("第2地心半径",AE39:AG39=geoCar(AF35,AF36,0)) -> 第2地心半径 | AE39: -5.58107086e-08 | AF39: 9.734470206e-22 | AG39: -6356757.138 | AH39: =exe("第2地心半径",AI39:AK39=geoCar(AJ35,AJ36,0)) -> 第2地心半径 | AI39: -5.58107086e-08 | AJ39: 9.734470206e-22 | AK39: 6356757.138
B40: ダウンレンジ（地心半径） | D40: =0.5*(SQRT(SUMSQ(C38:E38))+SQRT(SUMSQ(C39:E39)))*ACOS(SUMPRODUCT(C38:E38,C39:E39)/SQRT(SUMSQ(C38:E38))/SQRT(SUMSQ(C39:E39))) -> 372039.2409 | E40: [m] | F40: ダウンレンジ（地心半径） | H40: =0.5*(SQRT(SUMSQ(G38:I38))+SQRT(SUMSQ(G39:I39)))*ACOS(SUMPRODUCT(G38:I38,G39:I39)/SQRT(SUMSQ(G38:I38))/SQRT(SUMSQ(G39:I39))) -> 19926204.47 | I40: [m] | J40: ダウンレンジ（地心半径） | L40: =0.5*(SQRT(SUMSQ(K38:M38))+SQRT(SUMSQ(K39:M39)))*ACOS(SUMPRODUCT(K38:M38,K39:M39)/SQRT(SUMSQ(K38:M38))/SQRT(SUMSQ(K39:M39))) -> 20037524.05 | M40: [m] | N40: ダウンレンジ（地心半径） | P40: =0.5*(SQRT(SUMSQ(O38:Q38))+SQRT(SUMSQ(O39:Q39)))*ACOS(SUMPRODUCT(O38:Q38,O39:Q39)/SQRT(SUMSQ(O38:Q38))/SQRT(SUMSQ(O39:Q39))) -> 19926204.47 | Q40: [m] | R40: ダウンレンジ（地心半径） | T40: =0.5*(SQRT(SUMSQ(S38:U38))+SQRT(SUMSQ(S39:U39)))*ACOS(SUMPRODUCT(S38:U38,S39:U39)/SQRT(SUMSQ(S38:U38))/SQRT(SUMSQ(S39:U39))) -> 20020833.95 | U40: [m] | V40: ダウンレンジ（地心半径） | X40: =0.5*(SQRT(SUMSQ(W38:Y38))+SQRT(SUMSQ(W39:Y39)))*ACOS(SUMPRODUCT(W38:Y38,W39:Y39)/SQRT(SUMSQ(W38:Y38))/SQRT(SUMSQ(W39:Y39))) -> 13384231.24 | Y40: [m] | Z40: ダウンレンジ（地心半径） | AB40: =0.5*(SQRT(SUMSQ(AA38:AC38))+SQRT(SUMSQ(AA39:AC39)))*ACOS(SUMPRODUCT(AA38:AC38,AA39:AC39)/SQRT(SUMSQ(AA38:AC38))/SQRT(SUMSQ(AA39:AC39))) -> 6636602.71 | AC40: [m] | AD40: ダウンレンジ（地心半径） | AF40: =0.5*(SQRT(SUMSQ(AE38:AG38))+SQRT(SUMSQ(AE39:AG39)))*ACOS(SUMPRODUCT(AE38:AG38,AE39:AG39)/SQRT(SUMSQ(AE38:AG38))/SQRT(SUMSQ(AE39:AG39))) -> 19970341.53 | AG40: [m] | AH40: ダウンレンジ（地心半径） | AJ40: =0.5*(SQRT(SUMSQ(AI38:AK38))+SQRT(SUMSQ(AI39:AK39)))*ACOS(SUMPRODUCT(AI38:AK38,AI39:AK39)/SQRT(SUMSQ(AI38:AK38))/SQRT(SUMSQ(AI39:AK39))) -> 0 | AK40: [m]
C41: 差 | D41: =D40-D37 -> -0.6035848295 | E41: [m] | G41: 差 | H41: =H40-H37 -> 8.594244719e-06 | I41: [m] | K41: 差 | L41: =L40-L37 -> 8.709728718e-06 | M41: [m] | O41: 差 | P41: =P40-P37 -> -222639.1561 | Q41: [m] | S41: 差 | T41: =T40-T37 -> -8335.346983 | U41: [m] | W41: 差 | X41: =X40-X37 -> 20516.06364 | Y41: [m] | AA41: 差 | AB41: =AB40-AB37 -> -3629.00103 | AC41: [m] | AE41: 差 | AF41: =AF40-AF37 -> -33605.36448 | AG41: [m] | AI41: 差 | AJ41: =AJ40-AJ37 -> -1.116214172e-07 | AK41: [m]
A43: =A32+1 -> 3 | B43: 飛行パラメータ、ケプラー軌道要素
B44: （UTC） 発射日時 | C44: 2009 | D44: 年
C45: 9 | D45: 月
C46: 10 | D46: 日 | F46: =exe("発射日時の設定",setTime(C44:C46,C47:C49)) -> 発射日時の設定
C47: 17 | D47: 時
C48: 1 | D48: 分
C49: 46.4 | D49: 秒
B51: LO後秒時 | D51: 位置 r | G51: 速度 v | J51: 機体姿勢 四元数 Qib | N51: =exe("機体姿勢 方向余弦マトリクス Dib",N54:V54=QtnDcm(J54:M54)) -> 機体姿勢 方向余弦マトリクス Dib
B52: t | D52: x | E52: y | F52: z | G52: Vx | H52: Vy | I52: Vz | J52: q0 | K52: q1 | L52: q2 | M52: q3 | N52: Xbx | O52: Xby | P52: Xbz | Q52: Ybx | R52: Yby | S52: Ybz | T52: Zbx | U52: Zby | V52: Zbz
B53: [s] | D53: [m] | E53: [m] | F53: [m] | G53: [m/s] | H53: [m/s] | I53: [m/s] | J53: [ND] | K53: [ND] | L53: [ND] | M53: [ND] | N53: [ND] | O53: [ND] | P53: [ND] | Q53: [ND] | R53: [ND] | S53: [ND] | T53: [ND] | U53: [ND] | V53: [ND]
B54: 865.3 | D54: -6206573.293 | E54: 2339855.535 | F54: 668525.4029 | G54: -2227.538897 | H54: -4294.171938 | I54: -6002.733642 | J54: 0.01915770954 | K54: -0.219424282 | L54: -0.1179239688 | M54: 0.968287098 | N54: -0.9029719333 | O54: 0.0888510903 | P54: -0.4204130962 | Q54: 0.0146504384 | R54: -0.9714538395 | S54: -0.2367758483 | T54: -0.4294497088 | U54: -0.2199611817 | V54: 0.8758938441
L56: =exe("射点データの設定",L60:O60=lchpad(2)) -> 射点データの設定
D57: 慣性座標系識別コード | F57: 1 | G57: ND | L57: 高度 | M57: 測地緯度 | N57: 経度 | O57: 射点方位角
D58: 慣性座標系Ｘ軸 0：射点子午線基準、 1：グリニッジ子午線基準、 2：平均春分点基準 | L58: h | M58: φL | N58: λL | O58: μL
L59: [m] | M59: [度] | N59: [度] | O59: [度]
D60: =exe("慣性座標系基準の設定",setref(F57,0)) -> 慣性座標系基準の設定 | L60: 93.958 | M60: 30.40104008 | N60: 130.9754578 | O60: 125
B62: 飛行パラメータ | D62: =exe("GeoPos(t、SarVar（r、v、Qib）)",D66:O66=geopos(B54,stavar(D54:F54,G54:I54,J54:M54))) -> GeoPos(t、SarVar（r、v、Qib）) | P62: ここより下のセルで射点データや座標系が変更されていると、左のGeoPos()計算式がダブルクリックなどで再計算されたときに正しく計算されない。
D63: 地心半径 | E63: 地心緯度 | F63: 慣性基準 からの経度 | G63: 高度 | H63: 測地緯度 | I63: 経度 | J63: 慣性速度 | K63: 慣性速度 上下角 | L63: 慣性速度 方位角 | M63: 機軸上下角 | N63: 機軸方位角 | O63: バンク角
D64: Ri | E64: Vltc | F64: Vlni | G64: Alt | H64: Vlat | I64: Vlng | J64: Vi | K64: Fpvi | L64: Azvi | M64: Atli | N64: Amis | O64: Rlat
D65: [m] | E65: [度] | F65: [度] | G65: [m] | H65: [度] | I65: [度] | J65: [m/s] | K65: [度] | L65: [度] | M65: [度] | N65: [度] | O65: [度]
D66: 6666588.496 | E66: 5.755293554 | F66: 159.3437397 | G66: 288662.6195 | H66: 5.793818622 | I66: 286.6157864 | J66: 7709.387352 | K66: -0.2623575507 | L66: 141.4549066 | M66: 33.93306936 | N66: 155.0590934 | O66: 137.330497
J67: 検証 | K67: 誤差 | L67: LOG（割合）
D68: 地心半径＝位置ベクトルの絶対値＝ | J68: =SQRT(SUMSQ(D54:F54)) -> 6666588.496 | K68: =J68-D66 -> 0 | L68: =IF(K68/J68=0,0,IF(LOG(ABS(K68/J68))>0,ROUNDUP(LOG(ABS(K68/J68))+0.00000000000001,0),ROUNDUP(LOG(ABS(K68/J68)),0))) -> 0
D69: 地心緯度＝Z軸と赤道投影線との角＝ | J69: =DEGREES(ATAN2(SQRT(D54^2+E54^2),F54)) -> 5.755293554 | K69: =J69-E66 -> 0 | L69: =IF(K69/J69=0,0,IF(LOG(ABS(K69/J69))>0,ROUNDUP(LOG(ABS(K69/J69))+0.00000000000001,0),ROUNDUP(LOG(ABS(K69/J69)),0))) -> 0 | N69: R | O69: =D54/SQRT(SUMSQ($D54:$F54)) -> -0.9309969104 | P69: =E54/SQRT(SUMSQ($D54:$F54)) -> 0.3509824457 | Q69: =F54/SQRT(SUMSQ($D54:$F54)) -> 0.1002799863
D70: 慣性基準からの経度＝X軸とY軸との角＝ | J70: =DEGREES(ATAN2(D54,E54)) -> 159.3437397 | K70: =J70-F66 -> 0 | L70: 0 | N70: T | O70: =E54/SQRT(SUMSQ($D54:$F54))*(G54*E54-H54*D54)/SQRT((H54*F54-I54*E54)^2+(I54*D54-G54*F54)^2+(G54*E54-H54*D54)^2)-F54/SQRT(SUMSQ($D54:$F54))*(I54*D54-G54*F54)/SQRT((H54*F54-I54*E54)^2+(I54*D54-G54*F54)^2+(G54*E54-H54*D54)^2) -> -0.293204607 | P70: =F54/SQRT(SUMSQ($D54:$F54))*(H54*F54-I54*E54)/SQRT((H54*F54-I54*E54)^2+(I54*D54-G54*F54)^2+(G54*E54-H54*D54)^2)-D54/SQRT(SUMSQ($D54:$F54))*(G54*E54-H54*D54)/SQRT((H54*F54-I54*E54)^2+(I54*D54-G54*F54)^2+(G54*E54-H54*D54)^2) -> -0.5554042799 | Q70: =D54/SQRT(SUMSQ($D54:$F54))*(I54*D54-G54*F54)/SQRT((H54*F54-I54*E54)^2+(I54*D54-G54*F54)^2+(G54*E54-H54*D54)^2)-(H54*F54-I54*E54)/SQRT((H54*F54-I54*E54)^2+(I54*D54-G54*F54)^2+(G54*E54-H54*D54)^2)*E54/SQRT(SUMSQ($D54:$F54)) -> -0.7781755228
D71: 高度＝ | J71: =SQRT((SQRT(D54^2+E54^2)-rer()/SQRT(1-er()^2*sind(J72)^2)*cosd(J72))^2+(F54-rer()/SQRT(1-er()^2*sind(J72)^2)*sind(J72)*(1-er()^2))^2) -> 288662.6195 | K71: =J71-G66 -> 0 | L71: 0 | N71: N | O71: =(H54*F54-I54*E54)/SQRT((H54*F54-I54*E54)^2+(I54*D54-G54*F54)^2+(G54*E54-H54*D54)^2) -> 0.2174300146 | P71: =(I54*D54-G54*F54)/SQRT((H54*F54-I54*E54)^2+(I54*D54-G54*F54)^2+(G54*E54-H54*D54)^2) -> 0.7538815615 | Q71: =(G54*E54-H54*D54)/SQRT((H54*F54-I54*E54)^2+(I54*D54-G54*F54)^2+(G54*E54-H54*D54)^2) -> -0.6199893387
D72: 測地緯度＝ | J72: =DEGREES(ATAN2((1-er()^2)*SQRT(D54^2+E54^2),F54)) -> 5.793818622 | K72: =J72-H66 -> 0 | L72: 0
D73: 経度＝グリニッジから慣性基準までの経度（ゼロ）＋慣性基準からの経度－自転角＝ | J73: =F66-wer()*B54 -> 155.7284517 | K73: =J73-I66 -> -130.8873347 | L73: -1
D74: 慣性速度＝速度ベクトルの絶対値＝ | J74: =SQRT(SUMSQ(G54:I54)) -> 7709.387352 | K74: =J74-J66 -> 0 | L74: 0
D75: 慣性速度上下角＝地心半径ベクトル垂直面と速度ベクトルとの成す角＝ | J75: =DEGREES(ATAN2(G54*O70+H54*P70+I54*Q70,G54*O69+H54*P69+I54*Q69)) -> -0.2623575507 | K75: =J75-K66 -> 5.551115123e-16 | L75: -15
D76: 慣性速度方位角＝位置ベクトル垂直面投影速度を北から東回りに測った角＝ | J76: =DEGREES(ATAN2(E54*(E54*I54-F54*H54)-D54*(F54*G54-D54*I54),SQRT(SUMSQ(D54:F54))*(D54*H54-E54*G54))) -> 141.4549066 | K76: =J76-L66 -> 0 | L76: 0
D77: 機軸上下角＝位置ベクトル垂直面と機体ｘＢ軸との成す角＝ | J77: =DEGREES(ACOS(N54*O69+O54*P69+P54*Q69)) -> 33.93306936 | K77: =J77-M66 -> 0 | L77: 0
D78: 機軸方位角＝位置ベクトル垂直面投影の機体ｘＢ軸を北から東回りに測った角＝ | J78: =DEGREES(ATAN2(P69*(P69*P54-Q69*O54)-O69*(Q69*N54-O69*P54),(O69*O54-P69*N54))) -> 155.0590934 | K78: =J78-N66 -> 0 | L78: 0
D79: バンク角＝機体ｘＢ軸垂直面投影位置ベクトルをｙＢ軸から時計回りに測った角＝ | J79: =DEGREES(ATAN2(-(O69*T54+P69*U54+Q69*V54),-(O69*Q54+P69*R54+Q69*S54))) -> 137.330497 | K79: =J79-O66 -> 0 | L79: 0
B81: 飛行パラメータ（その１） | D81: =exe("GeoPos(t、SarVar（r、v、Qib）)、SetRef()、SetPad()",D85:O85=geopos(B54,stavar(D54:F54,G54:I54,J54:M54)), setref(F57,0), setpad(L60,M60,N60,O60)) -> GeoPos(t、SarVar（r、v、Qib）)、SetRef()、SetPad() | P81: 上記の問題が起きないようにGeoPos()の前に必ずSetPad()及びSetRef()が実行されるよう、一緒のセルに式を入れておく。実行順序は後ろの式から実行される。
D82: 地心半径 | E82: 地心緯度 | F82: 慣性基準 からの経度 | G82: 高度 | H82: 測地緯度 | I82: 経度 | J82: 慣性速度 | K82: 慣性速度 上下角 | L82: 慣性速度 方位角 | M82: 機軸上下角 | N82: 機軸方位角 | O82: バンク角
D83: Ri | E83: Vltc | F83: Vlni | G83: Alt | H83: Vlat | I83: Vlng | J83: Vi | K83: Fpvi | L83: Azvi | M83: Atli | N83: Amis | O83: Rlat
D84: [m] | E84: [度] | F84: [度] | G84: [m] | H84: [度] | I84: [度] | J84: [m/s] | K84: [度] | L84: [度] | M84: [度] | N84: [度] | O84: [度]
D85: 6666588.496 | E85: 5.755293554 | F85: 159.3437397 | G85: 288662.6195 | H85: 5.793818622 | I85: 155.7284517 | J85: 7709.387352 | K85: -0.2623575507 | L85: 141.4549066 | M85: 33.93306936 | N85: 155.0590934 | O85: 137.330497
J86: 検証 | K86: 誤差 | L86: LOG（割合）
D87: 地心半径＝位置ベクトルの絶対値＝ | J87: =SQRT(SUMSQ(D54:F54)) -> 6666588.496 | K87: =J87-D85 -> 0 | L87: =IF(K87/J87=0,0,IF(LOG(ABS(K87/J87))>0,ROUNDUP(LOG(ABS(K87/J87))+0.00000000000001,0),ROUNDUP(LOG(ABS(K87/J87)),0))) -> 0
D88: 地心緯度＝Z軸と赤道投影線との角＝ | J88: =DEGREES(ATAN2(SQRT(D54^2+E54^2),F54)) -> 5.755293554 | K88: =J88-E85 -> 0 | L88: =IF(K88/J88=0,0,IF(LOG(ABS(K88/J88))>0,ROUNDUP(LOG(ABS(K88/J88))+0.00000000000001,0),ROUNDUP(LOG(ABS(K88/J88)),0))) -> 0 | N88: R | O88: =D54/SQRT(SUMSQ($D54:$F54)) -> -0.9309969104 | P88: =E54/SQRT(SUMSQ($D54:$F54)) -> 0.3509824457 | Q88: =F54/SQRT(SUMSQ($D54:$F54)) -> 0.1002799863
D89: 慣性基準からの経度＝X軸とY軸との角＝ | J89: =DEGREES(ATAN2(D54,E54)) -> 159.3437397 | K89: =J89-F85 -> 0 | L89: 0 | N89: T | O89: =E54/SQRT(SUMSQ($D54:$F54))*(G54*E54-H54*D54)/SQRT((H54*F54-I54*E54)^2+(I54*D54-G54*F54)^2+(G54*E54-H54*D54)^2)-F54/SQRT(SUMSQ($D54:$F54))*(I54*D54-G54*F54)/SQRT((H54*F54-I54*E54)^2+(I54*D54-G54*F54)^2+(G54*E54-H54*D54)^2) -> -0.293204607 | P89: =F54/SQRT(SUMSQ($D54:$F54))*(H54*F54-I54*E54)/SQRT((H54*F54-I54*E54)^2+(I54*D54-G54*F54)^2+(G54*E54-H54*D54)^2)-D54/SQRT(SUMSQ($D54:$F54))*(G54*E54-H54*D54)/SQRT((H54*F54-I54*E54)^2+(I54*D54-G54*F54)^2+(G54*E54-H54*D54)^2) -> -0.5554042799 | Q89: =D54/SQRT(SUMSQ($D54:$F54))*(I54*D54-G54*F54)/SQRT((H54*F54-I54*E54)^2+(I54*D54-G54*F54)^2+(G54*E54-H54*D54)^2)-(H54*F54-I54*E54)/SQRT((H54*F54-I54*E54)^2+(I54*D54-G54*F54)^2+(G54*E54-H54*D54)^2)*E54/SQRT(SUMSQ($D54:$F54)) -> -0.7781755228
D90: 高度＝ | J90: =SQRT((SQRT(D54^2+E54^2)-rer()/SQRT(1-er()^2*sind(J72)^2)*cosd(J72))^2+(F54-rer()/SQRT(1-er()^2*sind(J72)^2)*sind(J72)*(1-er()^2))^2) -> 288662.6195 | K90: =J90-G85 -> 0 | L90: 0 | N90: N | O90: =(H54*F54-I54*E54)/SQRT((H54*F54-I54*E54)^2+(I54*D54-G54*F54)^2+(G54*E54-H54*D54)^2) -> 0.2174300146 | P90: =(I54*D54-G54*F54)/SQRT((H54*F54-I54*E54)^2+(I54*D54-G54*F54)^2+(G54*E54-H54*D54)^2) -> 0.7538815615 | Q90: =(G54*E54-H54*D54)/SQRT((H54*F54-I54*E54)^2+(I54*D54-G54*F54)^2+(G54*E54-H54*D54)^2) -> -0.6199893387
D91: 測地緯度＝ | J91: =DEGREES(ATAN2((1-er()^2)*SQRT(D54^2+E54^2),F54)) -> 5.793818622 | K91: =J91-H85 -> 0 | L91: 0
D92: 経度＝グリニッジから慣性基準までの経度（ゼロ）＋慣性基準からの経度－自転角＝ | J92: =F66-wer()*B54 -> 155.7284517 | K92: =J92-I85 -> 0 | L92: 0
D93: 慣性速度＝速度ベクトルの絶対値＝ | J93: =SQRT(SUMSQ(G54:I54)) -> 7709.387352 | K93: =J93-J85 -> 0 | L93: 0
D94: 慣性速度上下角＝地心半径ベクトル垂直面と速度ベクトルとの成す角＝ | J94: =DEGREES(ATAN2(G54*O70+H54*P70+I54*Q70,G54*O69+H54*P69+I54*Q69)) -> -0.2623575507 | K94: =J94-K85 -> 5.551115123e-16 | L94: -15
D95: 慣性速度方位角＝位置ベクトル垂直面投影速度を北から東回りに測った角＝ | J95: =DEGREES(ATAN2(E54*(E54*I54-F54*H54)-D54*(F54*G54-D54*I54),SQRT(SUMSQ(D54:F54))*(D54*H54-E54*G54))) -> 141.4549066 | K95: =J95-L85 -> 0 | L95: 0
D96: 機軸上下角＝位置ベクトル垂直面と機体ｘＢ軸との成す角＝ | J96: =DEGREES(ACOS(N54*O69+O54*P69+P54*Q69)) -> 33.93306936 | K96: =J96-M85 -> 0 | L96: 0
D97: 機軸方位角＝位置ベクトル垂直面投影の機体ｘＢ軸を北から東回りに測った角＝ | J97: =DEGREES(ATAN2(P69*(P69*P54-Q69*O54)-O69*(Q69*N54-O69*P54),(O69*O54-P69*N54))) -> 155.0590934 | K97: =J97-N85 -> 0 | L97: 0
D98: バンク角＝機体ｘＢ軸垂直面投影位置ベクトルをｙＢ軸から時計回りに測った角＝ | J98: =DEGREES(ATAN2(-(O69*T54+P69*U54+Q69*V54),-(O69*Q54+P69*R54+Q69*S54))) -> 137.330497 | K98: =J98-O85 -> 0 | L98: 0
B100: 飛行パラメータから逆算 | D100: =exe("GeoXyz(GeoPos)",D104:V104=geoxyz(D66:O66)) -> GeoXyz(GeoPos)
D101: 位置 r | G101: 速度 v | J101: 機体姿勢 四元数 Qib | N101: =exe("機体姿勢 方向余弦マトリクス Dib",N104:V104=QtnDcm(J104:M104)) -> 機体姿勢 方向余弦マトリクス Dib
D102: x | E102: y | F102: z | G102: Vx | H102: Vy | I102: Vz | J102: q0 | K102: q1 | L102: q2 | M102: q3 | N102: Xbx | O102: Xby | P102: Xbz | Q102: Ybx | R102: Yby | S102: Ybz | T102: Zbx | U102: Zby | V102: Zbz
D103: [m] | E103: [m] | F103: [m] | G103: [m/s] | H103: [m/s] | I103: [m/s] | J103: [ND] | K103: [ND] | L103: [ND] | M103: [ND] | N103: [ND] | O103: [ND] | P103: [ND] | Q103: [ND] | R103: [ND] | S103: [ND] | T103: [ND] | U103: [ND] | V103: [ND]
D104: -6206573.293 | E104: 2339855.535 | F104: 668525.4029 | G104: -2227.538897 | H104: -4294.171938 | I104: -6002.733642 | J104: 0.01915770954 | K104: -0.219424282 | L104: -0.1179239688 | M104: 0.968287098 | N104: -0.9029719333 | O104: 0.0888510903 | P104: -0.4204130962 | Q104: 0.0146504384 | R104: -0.9714538395 | S104: -0.2367758483 | T104: -0.4294497088 | U104: -0.2199611817 | V104: 0.8758938441
C105: 誤差 | D105: =D104-D54 -> 3.539025784e-08 | E105: =E104-E54 -> 9.499490261e-08 | F105: -3.84170562e-09 | G105: -8.549250197e-11 | H105: -4.547473509e-11 | I105: 6.457412383e-11 | J105: 3.788636072e-15 | K105: -9.520162436e-15 | L105: -4.218847494e-15 | M105: 4.884981308e-14 | N105: -9.126033262e-14 | O105: 1.329492072e-14 | P105: -3.885780586e-14 | Q105: -5.112230084e-15 | R105: -9.758860386e-14 | S105: -2.170486013e-14 | T105: -4.096722961e-14 | U105: -1.765254609e-14 | V105: 8.959499809e-14
C106: LOG（割合） | D106: =IF(D105/D104=0,0,IF(LOG(ABS(D105/D104))>0,ROUNDUP(LOG(ABS(D105/D104))+0.00000000000001,0),ROUNDUP(LOG(ABS(D105/D104)),0))) -> -15 | E106: =IF(E105/E104=0,0,IF(LOG(ABS(E105/E104))>0,ROUNDUP(LOG(ABS(E105/E104))+0.00000000000001,0),ROUNDUP(LOG(ABS(E105/E104)),0))) -> -14 | F106: -15 | G106: -14 | H106: -14 | I106: -14 | J106: -13 | K106: -14 | L106: -14 | M106: -14 | N106: -13 | O106: -13 | P106: -14 | Q106: -13 | R106: -13 | S106: -14 | T106: -14 | U106: -14 | V106: -13
B108: ケプラー軌道要素（その１） | D108: =exe("OrbElm(ｔ、StaVar(r、v、QibDummy))、SetRef()、SetPad()",D112:V112=orbelm(B54,stavar(D54:F54,G54:I54,ravqtn(vct3d(0,0,0)))), setref(F57,0), setpad(L60,M60,N60,O60)) -> OrbElm(ｔ、StaVar(r、v、QibDummy))、SetRef()、SetPad()
D109: 軌道長半径 | E109: 離心率 | F109: 軌道傾斜角 | G109: 昇降点経度 | H109: 近地点引数 | I109: 緯度引数 | J109: 遠地点高度 | K109: 近地点高度 | L109: 昇降点赤経 | M109: 真近点離角 | N109: 離心 近点離角 | O109: 平均 近点離角 | P109: 遠地点半径 | Q109: 近地点半径 | R109: 遠地点速度 | S109: 近地点速度 | T109: 軌道 エネルギー | U109: 周期 | V109: 半通径
D110: A | E110: Ecc | F110: Ainc | G110: Asnd | H110: Argp | I110: Argl | J110: Apg | K110: Prg | L110: Raan | M110: Ant | N110: Ane | O110: Anm | P110: Apf | Q110: Prf | R110: Vapf | S110: Vprf | T110: Envv | U110: Perd | V110: P
D111: [m] | E111: [ND] | F111: [度] | G111: [度] | H111: [度] | I111: [度] | J111: [m] | K111: [m] | L111: [度] | M111: [度] | N111: [度] | O111: [度] | P111: [m] | Q111: [m] | R111: [m/s] | S111: [m/s] | T111: [m^2/s^2] | U111: [s] | V111: [m]
D112: 6627109.835 | E112: 0.007513585491 | F112: 51.68464407 | G112: 340.296409 | H112: -44.62875713 | I112: 172.6570183 | J112: 298761.1918 | K112: 199174.4792 | L112: 50.89215476 | M112: 217.2857754 | N112: 217.5473515 | O112: 217.8097035 | P112: 6676903.192 | Q112: 6577316.479 | R112: 7697.396944 | S112: 7813.942721 | T112: -30073509.41 | U112: 5369.044254 | V112: 6626735.709
J113: 検証 | K113: 誤差 | L113: LOG（割合）
D114: 軌道長半径 | J114: =1/(2/O115-O116^2/gmu()) -> 6627109.835 | K114: =J114-D112 -> 0 | L114: =IF(K114/J114=0,0,IF(LOG(ABS(K114/J114))>0,ROUNDUP(LOG(ABS(K114/J114))+0.00000000000001,0),ROUNDUP(LOG(ABS(K114/J114)),0))) -> 0
D115: 離心率 | J115: =SQRT(1-J132*(2/O115-O116^2/gmu())) -> 0.007513585491 | K115: =J115-E112 -> 2.467123728e-14 | L115: -12 | N115: r | O115: =SQRT(SUMSQ(D54:F54)) -> 6666588.496
D116: 軌道傾斜角 | J116: =DEGREES(ATAN2(O119,SQRT(O117^2+O118^2))) -> 51.68464407 | K116: =J116-F112 -> 0 | L116: 0 | N116: v | O116: =SQRT(SUMSQ(G54:I54)) -> 7709.387352
D117: 昇降点経度 | J117: =IF(DEGREES(ATAN2(-O118,O117))-wer()*B54<0,DEGREES(ATAN2(-O118,O117))-wer()*B54+360,DEGREES(ATAN2(-O118,O117))-wer()*B54) -> 340.296409 | K117: =J117-G112 -> 0 | L117: 0 | N117: hx | O117: =E54*I54-F54*H54 -> -1.117476651e+10
D118: 近地点引数 | J118: =J119-J123 -> -44.62875713 | K118: =J118-H112 -> 4.263256415e-13 | L118: -15 | N118: hy | O118: =F54*G54-D54*I54 -> -3.874557264e+10
D119: 緯度引数 | J119: =DEGREES(ATAN2(E54*O117-D54*O118,F54*O120)) -> 172.6570183 | K119: =J119-I112 -> 0 | L119: 0 | N119: hz | O119: =D54*H54-E54*G54 -> 3.186421208e+10
D120: 遠地点高度 | J120: =J126-rer() -> 298761.1918 | K120: =J120-J112 -> 1.648440957e-07 | L120: -13 | N120: h | O120: =SQRT(SUMSQ(O117:O119)) -> 5.139477422e+10
D121: 近地点高度 | J121: =J127-rer() -> 199174.4792 | K121: =J121-K112 -> -1.611188054e-07 | L121: -13 | N121: =exe("gmst",O121=gmst(B54)) -> gmst | O121: 70.59574579
D122: 昇降点赤経 | J122: =IF(O121+J117>360,O121+J117-360,O121+J117) -> 50.89215476 | K122: =J122-L112 -> 0 | L122: 0
D123: 真近点離角 | J123: =IF(DEGREES(ATAN2(O120^2-gmu()*O115,O120*(D54*G54+E54*H54+F54*I54)))<0,DEGREES(ATAN2(O120^2-gmu()*O115,O120*(D54*G54+E54*H54+F54*I54)))+360,DEGREES(ATAN2(O120^2-gmu()*O115,O120*(D54*G54+E54*H54+F54*I54)))) -> 217.2857754 | K123: =J123-M112 -> -4.547473509e-13 | L123: -15
D124: 離心 近点離角 | J124: =IF(DEGREES(ATAN2(-1+O115*O116^2/gmu(),(D54*G54+E54*H54+F54*I54)/SQRT(gmu()*J114)))<0,DEGREES(ATAN2(-1+O115*O116^2/gmu(),(D54*G54+E54*H54+F54*I54)/SQRT(gmu()*J114)))+360,DEGREES(ATAN2(-1+O115*O116^2/gmu(),(D54*G54+E54*H54+F54*I54)/SQRT(gmu()*J114)))) -> 217.5473515 | K124: =J124-N112 -> 3.694822226e-13 | L124: -15
D125: 平均 近点離角 | J125: =IF(DEGREES(ATAN2(-1+O115*O116^2/gmu(),(D54*G54+E54*H54+F54*I54)/SQRT(gmu()*J114))-(D54*G54+E54*H54+F54*I54)/SQRT(gmu()*J114))<0,DEGREES(ATAN2(-1+O115*O116^2/gmu(),(D54*G54+E54*H54+F54*I54)/SQRT(gmu()*J114))-(D54*G54+E54*H54+F54*I54)/SQRT(gmu()*J114))+360,DEGREES(ATAN2(-1+O115*O116^2/gmu(),(D54*G54+E54*H54+F54*I54)/SQRT(gmu()*J114))-(D54*G54+E54*H54+F54*I54)/SQRT(gmu()*J114))) -> 217.8097035 | K125: =J125-O112 -> 3.694822226e-13 | L125: -15
D126: 遠地点半径 | J126: =J114*(1+J115) -> 6676903.192 | K126: =J126-P112 -> 1.648440957e-07 | L126: -14
D127: 近地点半径 | J127: =J114*(1-J115) -> 6577316.479 | K127: =J127-Q112 -> -1.611188054e-07 | L127: -14
D128: 遠地点速度 | J128: =SQRT((2*gmu()/O115-O116^2)*(1-J115)/(1+J115)) -> 7697.396944 | K128: =J128-R112 -> -1.900843927e-10 | L128: -14
D129: 近地点速度 | J129: =SQRT((2*gmu()/O115-O116^2)*(1+J115)/(1-J115)) -> 7813.942721 | K129: =J129-S112 -> 1.919033821e-10 | L129: -14
D130: 軌道 エネルギー | J130: =-gmu()/O115+O116^2/2 -> -30073509.41 | K130: =J130-T112 -> 0 | L130: 0
D131: 周期 | J131: =2*PI()*SQRT(J114^2/(2*gmu()/O115-O116^2)) -> 5369.044254 | K131: =J131-U112 -> 0 | L131: 0
D132: 半通径 | J132: =O120^2/gmu() -> 6626735.709 | K132: =J132-V112 -> 0 | L132: 0
B134: ケプラー軌道要素から逆算 | D134: =exe("OrbXyz(ｔ、OrbElm)",D138:V138=orbxyz(B54,D112:V112), setref(F57,0), setpad(L60,M60,N60,O60)) -> OrbXyz(ｔ、OrbElm)
D135: 位置 r | G135: 速度 v | J135: 機体姿勢 四元数 Qib | N135: =exe("機体姿勢 方向余弦マトリクス Dib",N138:V138=QtnDcm(J138:M138)) -> 機体姿勢 方向余弦マトリクス Dib
D136: x | E136: y | F136: z | G136: Vx | H136: Vy | I136: Vz | J136: q0 | K136: q1 | L136: q2 | M136: q3 | N136: Xbx | O136: Xby | P136: Xbz | Q136: Ybx | R136: Yby | S136: Ybz | T136: Zbx | U136: Zby | V136: Zbz
D137: [m] | E137: [m] | F137: [m] | G137: [m/s] | H137: [m/s] | I137: [m/s] | J137: [ND] | K137: [ND] | L137: [ND] | M137: [ND] | N137: [ND] | O137: [ND] | P137: [ND] | Q137: [ND] | R137: [ND] | S137: [ND] | T137: [ND] | U137: [ND] | V137: [ND]
D138: -6206573.293 | E138: 2339855.535 | F138: 668525.4029 | G138: -2227.538897 | H138: -4294.171938 | I138: -6002.733642 | J138: 0 | K138: 0 | L138: 0 | M138: 0 | N138: 0 | O138: 0 | P138: 0 | Q138: 0 | R138: 0 | S138: 0 | T138: 0 | U138: 0 | V138: 0
C139: 誤差 | D139: =D138-D54 -> 1.229345798e-07 | E139: 2.663582563e-07 | F139: 8.253846318e-08 | G139: -2.874003258e-10 | H139: 8.367351256e-11 | I139: 2.728484105e-11 | J139: 姿勢データは無い
C140: LOG（割合） | D140: =IF(D139/D138=0,0,IF(LOG(ABS(D139/D138))>0,ROUNDUP(LOG(ABS(D139/D138))+0.00000000000001,0),ROUNDUP(LOG(ABS(D139/D138)),0))) -> -14 | E140: -13 | F140: -13 | G140: -13 | H140: -14 | I140: -15
B142: 下記その２は、与えられた位置･速度が平均春分点に慣性基準を採ったときのものと見なした計算例。 | L142: =exe("射点データの設定",L146:O146=lchpad(2)) -> 射点データの設定
L143: 高度 | M143: 測地緯度 | N143: 経度 | O143: 射点方位角
D144: 慣性座標系識別コード | F144: 2 | G144: ND | L144: h | M144: φL | N144: λL | O144: μL
D145: 慣性座標系Ｘ軸 0：射点子午線基準、 1：グリニッジ子午線基準、 2：平均春分点基準 | L145: [m] | M145: [度] | N145: [度] | O145: [度]
L146: 93.958 | M146: 30.40104008 | N146: 130.9754578 | O146: 125
B148: 飛行パラメータ（その２） | D148: =exe("GeoPos(t、SarVar（r、v、Qib）)、SetRef()、SetPad()",D152:O152=geopos(B54,stavar(D54:F54,G54:I54,J54:M54)), setref(F144,0), setpad(L146,M146,N146,O146)) -> GeoPos(t、SarVar（r、v、Qib）)、SetRef()、SetPad()
D149: 地心半径 | E149: 地心緯度 | F149: 慣性基準 からの経度 | G149: 高度 | H149: 測地緯度 | I149: 経度 | J149: 慣性速度 | K149: 慣性速度 上下角 | L149: 慣性速度 方位角 | M149: 機軸上下角 | N149: 機軸方位角 | O149: バンク角
D150: Ri | E150: Vltc | F150: Vlni | G150: Alt | H150: Vlat | I150: Vlng | J150: Vi | K150: Fpvi | L150: Azvi | M150: Atli | N150: Amis | O150: Rlat
D151: [m] | E151: [度] | F151: [度] | G151: [m] | H151: [度] | I151: [度] | J151: [m/s] | K151: [度] | L151: [度] | M151: [度] | N151: [度] | O151: [度]
D152: 6666588.496 | E152: 5.755293554 | F152: 159.3437397 | G152: 288662.6195 | H152: 5.793818622 | I152: 88.74799393 | J152: 7709.387352 | K152: -0.2623575507 | L152: 141.4549066 | M152: 33.93306936 | N152: 155.0590934 | O152: 137.330497
C153: その１との差 | D153: =D152-D85 -> 0 | E153: =E152-E85 -> 0 | F153: =F152-F85 -> 0 | G153: 0 | H153: 0 | I153: =IF(I152-I85<0,I152-I85+360,I152-I85) -> 293.0195422 | J153: 0 | K153: 0 | L153: 0 | M153: 0 | N153: 0 | O153: 0
D154: 経度＝グリニッジから慣性基準（平均春分点）までの経度＋慣性基準からの経度－自転角＝ | K154: =IF(-K155+F152-wer()*B54<0,-K155+F152-wer()*B54+360,-K155+F152-wer()*B54) -> 88.74799393
D155: =exe("発射時グリニッジ平均恒星時（平均春分点からグリニッジまでの経度）＝",K155=gmst(0)) -> 発射時グリニッジ平均恒星時（平均春分点からグリニッジまでの経度）＝ | K155: 66.98045781
B157: 飛行パラメータから逆算 | D157: =exe("GeoXyz(GeoPos)",D161:V161=geoxyz(D152:O152)) -> GeoXyz(GeoPos)
D158: 位置 r | G158: 速度 v | J158: 機体姿勢 四元数 Qib | N158: =exe("機体姿勢 方向余弦マトリクス Dib",N161:V161=QtnDcm(J161:M161)) -> 機体姿勢 方向余弦マトリクス Dib
D159: x | E159: y | F159: z | G159: Vx | H159: Vy | I159: Vz | J159: q0 | K159: q1 | L159: q2 | M159: q3 | N159: Xbx | O159: Xby | P159: Xbz | Q159: Ybx | R159: Yby | S159: Ybz | T159: Zbx | U159: Zby | V159: Zbz
D160: [m] | E160: [m] | F160: [m] | G160: [m/s] | H160: [m/s] | I160: [m/s] | J160: [ND] | K160: [ND] | L160: [ND] | M160: [ND] | N160: [ND] | O160: [ND] | P160: [ND] | Q160: [ND] | R160: [ND] | S160: [ND] | T160: [ND] | U160: [ND] | V160: [ND]
D161: -6206573.293 | E161: 2339855.535 | F161: 668525.4029 | G161: -2227.538897 | H161: -4294.171938 | I161: -6002.733642 | J161: 0.01915770954 | K161: -0.219424282 | L161: -0.1179239688 | M161: 0.968287098 | N161: -0.9029719333 | O161: 0.0888510903 | P161: -0.4204130962 | Q161: 0.0146504384 | R161: -0.9714538395 | S161: -0.2367758483 | T161: -0.4294497088 | U161: -0.2199611817 | V161: 0.8758938441
C162: 誤差 | D162: =D161-D54 -> 3.539025784e-08 | E162: =E161-E54 -> 9.499490261e-08 | F162: -3.84170562e-09 | G162: -8.549250197e-11 | H162: -4.547473509e-11 | I162: 6.457412383e-11 | J162: 3.788636072e-15 | K162: -9.520162436e-15 | L162: -4.218847494e-15 | M162: 4.884981308e-14 | N162: -9.126033262e-14 | O162: 1.329492072e-14 | P162: -3.885780586e-14 | Q162: -5.112230084e-15 | R162: -9.758860386e-14 | S162: -2.170486013e-14 | T162: -4.096722961e-14 | U162: -1.765254609e-14 | V162: 8.959499809e-14
C163: LOG（割合） | D163: =IF(D162/D161=0,0,IF(LOG(ABS(D162/D161))>0,ROUNDUP(LOG(ABS(D162/D161))+0.00000000000001,0),ROUNDUP(LOG(ABS(D162/D161)),0))) -> -15 | E163: -14 | F163: -15 | G163: -14 | H163: -14 | I163: -14 | J163: -13 | K163: -14 | L163: -14 | M163: -14 | N163: -13 | O163: -13 | P163: -14 | Q163: -13 | R163: -13 | S163: -14 | T163: -14 | U163: -14 | V163: -13
B165: ケプラー軌道要素（その２） | D165: =exe("OrbElm(ｔ、StaVar(r、v、QibDummy))、SetRef()、SetPad()",D169:V169=orbelm(B54,stavar(D54:F54,G54:I54,ravqtn(vct3d(0,0,0)))), setref(F144,0), setpad(L146,M146,N146,O146)) -> OrbElm(ｔ、StaVar(r、v、QibDummy))、SetRef()、SetPad()
D166: 軌道長半径 | E166: 離心率 | F166: 軌道傾斜角 | G166: 昇降点経度 | H166: 近地点引数 | I166: 緯度引数 | J166: 遠地点高度 | K166: 近地点高度 | L166: 昇降点赤経 | M166: 真近点離角 | N166: 離心 近点離角 | O166: 平均 近点離角 | P166: 遠地点半径 | Q166: 近地点半径 | R166: 遠地点速度 | S166: 近地点速度 | T166: 軌道 エネルギー | U166: 周期 | V166: 半通径
D167: A | E167: Ecc | F167: Ainc | G167: Asnd | H167: Argp | I167: Argl | J167: Apg | K167: Prg | L167: Raan | M167: Ant | N167: Ane | O167: Anm | P167: Apf | Q167: Prf | R167: Vapf | S167: Vprf | T167: Envv | U167: Perd | V167: P
D168: [m] | E168: [ND] | F168: [度] | G168: [度] | H168: [度] | I168: [度] | J168: [m] | K168: [m] | L168: [度] | M168: [度] | N168: [度] | O168: [度] | P168: [m] | Q168: [m] | R168: [m/s] | S168: [m/s] | T168: [m^2/s^2] | U168: [s] | V168: [m]
D169: 6627109.835 | E169: 0.007513585491 | F169: 51.68464407 | G169: 273.3159512 | H169: -44.62875713 | I169: 172.6570183 | J169: 298761.1918 | K169: 199174.4792 | L169: 343.911697 | M169: 217.2857754 | N169: 217.5473515 | O169: 217.8097035 | P169: 6676903.192 | Q169: 6577316.479 | R169: 7697.396944 | S169: 7813.942721 | T169: -30073509.41 | U169: 5369.044254 | V169: 6626735.709
C170: その１との差 | D170: =D169-D112 -> 0 | E170: =E169-E112 -> 0 | F170: 0 | G170: =IF(G169-G112<0,G169-G112+360,G169-G112) -> 293.0195422 | H170: 0 | I170: 0 | J170: 0 | K170: 0 | L170: =IF(L169-L112<0,L169-L112+360,L169-L112) -> 293.0195422 | M170: 0 | N170: 0 | O170: 0 | P170: 0 | Q170: 0 | R170: 0 | S170: 0 | T170: 0 | U170: 0 | V170: 0
B172: ケプラー軌道要素から逆算 | D172: =exe("OrbXyz(ｔ、OrbElm)",D176:V176=orbxyz(B54,D169:V169), setref(F144,0), setpad(L146,M146,N146,O146)) -> OrbXyz(ｔ、OrbElm)
D173: 位置 r | G173: 速度 v | J173: 機体姿勢 四元数 Qib | N173: =exe("機体姿勢 方向余弦マトリクス Dib",N176:V176=QtnDcm(J176:M176)) -> 機体姿勢 方向余弦マトリクス Dib
D174: x | E174: y | F174: z | G174: Vx | H174: Vy | I174: Vz | J174: q0 | K174: q1 | L174: q2 | M174: q3 | N174: Xbx | O174: Xby | P174: Xbz | Q174: Ybx | R174: Yby | S174: Ybz | T174: Zbx | U174: Zby | V174: Zbz
D175: [m] | E175: [m] | F175: [m] | G175: [m/s] | H175: [m/s] | I175: [m/s] | J175: [ND] | K175: [ND] | L175: [ND] | M175: [ND] | N175: [ND] | O175: [ND] | P175: [ND] | Q175: [ND] | R175: [ND] | S175: [ND] | T175: [ND] | U175: [ND] | V175: [ND]
D176: -6206573.293 | E176: 2339855.535 | F176: 668525.4029 | G176: -2227.538897 | H176: -4294.171938 | I176: -6002.733642 | J176: 0 | K176: 0 | L176: 0 | M176: 0 | N176: 0 | O176: 0 | P176: 0 | Q176: 0 | R176: 0 | S176: 0 | T176: 0 | U176: 0 | V176: 0
C177: 誤差 | D177: =D176-D54 -> 1.229345798e-07 | E177: 2.663582563e-07 | F177: 8.253846318e-08 | G177: -2.874003258e-10 | H177: 8.367351256e-11 | I177: 2.728484105e-11 | J177: 姿勢データは無い
C178: LOG（割合） | D178: =IF(D177/D176=0,0,IF(LOG(ABS(D177/D176))>0,ROUNDUP(LOG(ABS(D177/D176))+0.00000000000001,0),ROUNDUP(LOG(ABS(D177/D176)),0))) -> -14 | E178: -13 | F178: -13 | G178: -13 | H178: -14 | I178: -15
B180: 下記その３は、与えられた位置･速度がフライトモード･オン時射点子午線に慣性基準を採ったときのものと見なした計算例。
L181: =exe("射点データの設定",L185:O185=lchpad(1)) -> 射点データの設定
D182: 慣性座標系識別コード | F182: 0 | G182: ND | L182: 高度 | M182: 測地緯度 | N182: 経度 | O182: 射点方位角
D183: 慣性座標系Ｘ軸 0：射点子午線基準、 1：グリニッジ子午線基準、 2：平均春分点基準 | L183: h | M183: φL | N183: λL | O183: μL
L184: [m] | M184: [度] | N184: [度] | O184: [度]
D185: フライトモード･オンから発射までの時間 | G185: 18 | H185: [s] | L185: 62.314 | M185: 30.38569 | N185: 130.96254 | O185: 125
B187: 飛行パラメータ（その３） | D187: =exe("GeoPos(t、SarVar（r、v、Qib）)",D191:O191=geopos(B54,stavar(D54:F54,G54:I54,J54:M54)), setref(F182,G185), setpad(L185,M185,N185,O185)) -> GeoPos(t、SarVar（r、v、Qib）)
D188: 地心半径 | E188: 地心緯度 | F188: 慣性基準 からの経度 | G188: 高度 | H188: 測地緯度 | I188: 経度 | J188: 慣性速度 | K188: 慣性速度 上下角 | L188: 慣性速度 方位角 | M188: 機軸上下角 | N188: 機軸方位角 | O188: バンク角
D189: Ri | E189: Vltc | F189: Vlni | G189: Alt | H189: Vlat | I189: Vlng | J189: Vi | K189: Fpvi | L189: Azvi | M189: Atli | N189: Amis | O189: Rlat
D190: [m] | E190: [度] | F190: [度] | G190: [m] | H190: [度] | I190: [度] | J190: [m/s] | K190: [度] | L190: [度] | M190: [度] | N190: [度] | O190: [度]
D191: 6666588.496 | E191: 5.755293554 | F191: 159.3437397 | G191: 288662.6195 | H191: 5.793818622 | I191: 286.6157864 | J191: 7709.387352 | K191: -0.2623575507 | L191: 141.4549066 | M191: 33.93306936 | N191: 155.0590934 | O191: 137.330497
C192: その１との差 | D192: =D191-D85 -> 0 | E192: 0 | F192: 0 | G192: 0 | H192: 0 | I192: 130.8873347 | J192: 0 | K192: 0 | L192: 0 | M192: 0 | N192: 0 | O192: 0
D193: 経度＝グリニッジから慣性基準までの経度＋慣性基準（平均春分点）からの経度―フライトモード･オンからの自転角＝ | M193: =N185+F191-wer()*(G185+B54) -> 286.6157864
B195: 飛行パラメータから逆算 | D195: =exe("GeoXyz(GeoPos)",D199:V199=geoxyz(D191:O191)) -> GeoXyz(GeoPos)
D196: 位置 r | G196: 速度 v | J196: 機体姿勢 四元数 Qib | N196: =exe("機体姿勢 方向余弦マトリクス Dib",N199:V199=QtnDcm(J199:M199)) -> 機体姿勢 方向余弦マトリクス Dib
D197: x | E197: y | F197: z | G197: Vx | H197: Vy | I197: Vz | J197: q0 | K197: q1 | L197: q2 | M197: q3 | N197: Xbx | O197: Xby | P197: Xbz | Q197: Ybx | R197: Yby | S197: Ybz | T197: Zbx | U197: Zby | V197: Zbz
D198: [m] | E198: [m] | F198: [m] | G198: [m/s] | H198: [m/s] | I198: [m/s] | J198: [ND] | K198: [ND] | L198: [ND] | M198: [ND] | N198: [ND] | O198: [ND] | P198: [ND] | Q198: [ND] | R198: [ND] | S198: [ND] | T198: [ND] | U198: [ND] | V198: [ND]
D199: -6206573.293 | E199: 2339855.535 | F199: 668525.4029 | G199: -2227.538897 | H199: -4294.171938 | I199: -6002.733642 | J199: 0.01915770954 | K199: -0.219424282 | L199: -0.1179239688 | M199: 0.968287098 | N199: -0.9029719333 | O199: 0.0888510903 | P199: -0.4204130962 | Q199: 0.0146504384 | R199: -0.9714538395 | S199: -0.2367758483 | T199: -0.4294497088 | U199: -0.2199611817 | V199: 0.8758938441
C200: 誤差 | D200: =D199-D54 -> 3.539025784e-08 | E200: 9.499490261e-08 | F200: -3.84170562e-09 | G200: -8.549250197e-11 | H200: -4.547473509e-11 | I200: 6.457412383e-11 | J200: 3.788636072e-15 | K200: -9.520162436e-15 | L200: -4.218847494e-15 | M200: 4.884981308e-14 | N200: -9.126033262e-14 | O200: 1.329492072e-14 | P200: -3.885780586e-14 | Q200: -5.112230084e-15 | R200: -9.758860386e-14 | S200: -2.170486013e-14 | T200: -4.096722961e-14 | U200: -1.765254609e-14 | V200: 8.959499809e-14
C201: LOG（割合） | D201: =IF(D200/D199=0,0,IF(LOG(ABS(D200/D199))>0,ROUNDUP(LOG(ABS(D200/D199))+0.00000000000001,0),ROUNDUP(LOG(ABS(D200/D199)),0))) -> -15 | E201: -14 | F201: -15 | G201: -14 | H201: -14 | I201: -14 | J201: -13 | K201: -14 | L201: -14 | M201: -14 | N201: -13 | O201: -13 | P201: -14 | Q201: -13 | R201: -13 | S201: -14 | T201: -14 | U201: -14 | V201: -13
B203: ケプラー軌道要素（その３） | D203: =exe("OrbElm(t、StaVar(r、v、QibDummy))、SetRef()、SetPad()",D207:V207=orbelm(B54,stavar(D54:F54,G54:I54,ravqtn(vct3d(0,0,0)))), setref(F182,G185), setpad(L185,M185,N185,O185)) -> OrbElm(t、StaVar(r、v、QibDummy))、SetRef()、SetPad()
D204: 軌道長半径 | E204: 離心率 | F204: 軌道傾斜角 | G204: 昇降点経度 | H204: 近地点引数 | I204: 緯度引数 | J204: 遠地点高度 | K204: 近地点高度 | L204: 昇降点赤経 | M204: 真近点離角 | N204: 離心 近点離角 | O204: 平均 近点離角 | P204: 遠地点半径 | Q204: 近地点半径 | R204: 遠地点速度 | S204: 近地点速度 | T204: 軌道 エネルギー | U204: 周期 | V204: 半通径
D205: A | E205: Ecc | F205: Ainc | G205: Asnd | H205: Argp | I205: Argl | J205: Apg | K205: Prg | L205: Raan | M205: Ant | N205: Ane | O205: Anm | P205: Apf | Q205: Prf | R205: Vapf | S205: Vprf | T205: Envv | U205: Perd | V205: P
D206: [m] | E206: [ND] | F206: [度] | G206: [度] | H206: [度] | I206: [度] | J206: [m] | K206: [m] | L206: [度] | M206: [度] | N206: [度] | O206: [度] | P206: [m] | Q206: [m] | R206: [m/s] | S206: [m/s] | T206: [m^2/s^2] | U206: [s] | V206: [m]
D207: 6627109.835 | E207: 0.007513585491 | F207: 51.68464407 | G207: 111.1837436 | H207: -44.62875713 | I207: 172.6570183 | J207: 298761.1918 | K207: 199174.4792 | L207: 181.7794894 | M207: 217.2857754 | N207: 217.5473515 | O207: 217.8097035 | P207: 6676903.192 | Q207: 6577316.479 | R207: 7697.396944 | S207: 7813.942721 | T207: -30073509.41 | U207: 5369.044254 | V207: 6626735.709
C208: その１との差 | D208: =D207-D112 -> 0 | E208: =E207-E112 -> 0 | F208: =F207-F112 -> 0 | G208: =IF(G207-G112<0,G207-G112+360,G207-G112) -> 130.8873347 | H208: =H207-H112 -> 0 | I208: =I207-I112 -> 0 | J208: =J207-J112 -> 0 | K208: =K207-K112 -> 0 | L208: =IF(L207-L112<0,L207-L112+360,L207-L112) -> 130.8873347 | M208: =M207-M112 -> 0 | N208: 0 | O208: 0 | P208: 0 | Q208: 0 | R208: 0 | S208: 0 | T208: 0 | U208: 0 | V208: 0
B210: ケプラー軌道要素から逆算 | D210: =exe("OrbXyz(ｔ、OrbElm)",D214:V214=orbxyz(B54,D207:V207), setref(F182,G185), setpad(L185,M185,N185,O185)) -> OrbXyz(ｔ、OrbElm)
D211: 位置 r | G211: 速度 v | J211: 機体姿勢 四元数 Qib | N211: =exe("機体姿勢 方向余弦マトリクス Dib",N214:V214=QtnDcm(J214:M214)) -> 機体姿勢 方向余弦マトリクス Dib
D212: x | E212: y | F212: z | G212: Vx | H212: Vy | I212: Vz | J212: q0 | K212: q1 | L212: q2 | M212: q3 | N212: Xbx | O212: Xby | P212: Xbz | Q212: Ybx | R212: Yby | S212: Ybz | T212: Zbx | U212: Zby | V212: Zbz
D213: [m] | E213: [m] | F213: [m] | G213: [m/s] | H213: [m/s] | I213: [m/s] | J213: [ND] | K213: [ND] | L213: [ND] | M213: [ND] | N213: [ND] | O213: [ND] | P213: [ND] | Q213: [ND] | R213: [ND] | S213: [ND] | T213: [ND] | U213: [ND] | V213: [ND]
D214: -6206573.293 | E214: 2339855.535 | F214: 668525.4029 | G214: -2227.538897 | H214: -4294.171938 | I214: -6002.733642 | J214: 0 | K214: 0 | L214: 0 | M214: 0 | N214: 0 | O214: 0 | P214: 0 | Q214: 0 | R214: 0 | S214: 0 | T214: 0 | U214: 0 | V214: 0
C215: 誤差 | D215: =D214-D54 -> 4.097819328e-08 | E215: 5.075708032e-08 | F215: 8.253846318e-08 | G215: -1.382431947e-10 | H215: 0 | I215: 2.728484105e-11 | J215: 姿勢データは無い
C216: LOG（割合） | D216: =IF(D215/D214=0,0,IF(LOG(ABS(D215/D214))>0,ROUNDUP(LOG(ABS(D215/D214))+0.00000000000001,0),ROUNDUP(LOG(ABS(D215/D214)),0))) -> -15 | E216: -14 | F216: -13 | G216: -14 | H216: 0 | I216: -15
A218: =A43+1 -> 4 | B218: 地上局
B219: （UTC） 発射日時 | C219: 2009 | D219: 年
C220: 9 | D220: 月
C221: 10 | D221: 日 | F221: =exe("発射日時の設定",setTime(C219:C221,C222:C224)) -> 発射日時の設定
C222: 17 | D222: 時
C223: 1 | D223: 分
C224: 46.4 | D224: 秒
... 169 more rows

Sheet お問合せ
B2: 技術的なご質問のみお受けします。
C4: sxsijk@Gmail.com | D4: sxsijk@Gmail.com
E85: =C85-#REF! -> 
E86: =IF(C86<0,C86+360,C86)-IF(#REF!<0,#REF!+360,#REF!) -> 
E87: =C87-#REF! -> 
E89: =C89-#REF! -> 
E90: =C90-#REF! -> 
E91: =C91-#REF! -> 
E92: =C92-#REF! -> 
E93: =C93-#REF! -> 
E94: =IF(C94<0,C94+360,C94)-IF(#REF!<0,#REF!+360,#REF!) -> 
E95: =C95-#REF! -> 
E96: =C96-#REF! -> 
E97: =C97-#REF! -> 
E98: =C98-#REF! -> 
E99: =C99-#REF! -> 
C102: 35 | E102: =C102-#REF! -> 
B103: λp | E103: =C103-#REF! -> 
E104: =C104-#REF! -> 
C105: =SQRT(((#REF!^2*COS(RADIANS(C102)))^2+(C$3^2*SIN(RADIANS(C102)))^2)/(#REF!^2*(1-C$4*SIN(RADIANS(C102))^2))) ->  | E105: =C105-#REF! -> 
C106: =DEGREES(C108/C105) ->  | E106: =C106-#REF! -> 
E107: =C107-#REF! -> 
E108: =C108-#REF! -> 
E109: =IF(C109<0,C109+360,C109)-IF(#REF!<0,#REF!+360,#REF!) -> 
E110: =C110-#REF! -> 
C111: =DEGREES(ATAN2((1-C$4)*COS(RADIANS(C110)),SIN(RADIANS(C110)))) ->  | E111: =C111-#REF! -> 
C112: =SQRT(((#REF!^2*COS(RADIANS(C111)))^2+(C$3^2*SIN(RADIANS(C111)))^2)/(#REF!^2*(1-C$4*SIN(RADIANS(C111))^2))) ->  | E112: =C112-#REF! -> 
C113: =DEGREES(ACOS(COS(RADIANS(C$104))*COS(RADIANS(C110))*(COS(RADIANS(C$103))*COS(RADIANS(C109))+SIN(RADIANS(C$103))*SIN(RADIANS(C109)))+SIN(RADIANS(C$104))*SIN(RADIANS(C110)))) -> 0 | E113: =C113-#REF! -> 
C114: =DEGREES(ATAN2(COS(RADIANS(C$104))*SIN(RADIANS(C110))-SIN(RADIANS(C$104))*COS(RADIANS(C110))*COS(RADIANS(C109-C$103)),COS(RADIANS(C110))*SIN(RADIANS(C109-C$103)))) ->  | E114: =C114-#REF! -> 
C115: =SQRT(((C$105-C112)*COS(RADIANS(C113/2)))^2+(MAX(C$105,C112)*RADIANS(C113)-ABS(C$105-C112)*SIN(RADIANS(C113/2)))^2) ->  | E115: =C115-#REF! -> 
A116: 補正 | B116: θ＝θ+(d0-d)/r | C116: =C106+DEGREES((C108-C115)/C112) ->  | E116: =C116-#REF! -> 
C117: =C107 -> 0 | E117: =C117-#REF! -> 
C118: =C108 -> 0 | E118: =C118-#REF! -> 
E119: =IF(C119<0,C119+360,C119)-IF(#REF!<0,#REF!+360,#REF!) -> 
E120: =C120-#REF! -> 
C121: =DEGREES(ATAN2((1-C$4)*COS(RADIANS(C120)),SIN(RADIANS(C120)))) ->  | E121: =C121-#REF! -> 
C122: =SQRT(((#REF!^2*COS(RADIANS(C121)))^2+(C$3^2*SIN(RADIANS(C121)))^2)/(#REF!^2*(1-C$4*SIN(RADIANS(C121))^2))) ->  | E122: =C122-#REF! -> 
C123: =DEGREES(ACOS(COS(RADIANS(C$104))*COS(RADIANS(C120))*(COS(RADIANS(C$103))*COS(RADIANS(C119))+SIN(RADIANS(C$103))*SIN(RADIANS(C119)))+SIN(RADIANS(C$104))*SIN(RADIANS(C120)))) -> 0 | E123: =C123-#REF! -> 
C124: =DEGREES(ATAN2(COS(RADIANS(C$104))*SIN(RADIANS(C120))-SIN(RADIANS(C$104))*COS(RADIANS(C120))*COS(RADIANS(C119-C$103)),COS(RADIANS(C120))*SIN(RADIANS(C119-C$103)))) ->  | E124: =C124-#REF! -> 
C125: =SQRT(((C$105-C122)*COS(RADIANS(C123/2)))^2+(MAX(C$105,C122)*RADIANS(C123)-ABS(C$105-C122)*SIN(RADIANS(C123/2)))^2) ->  | E125: =C125-#REF! -> 
